{"text_format":"3","workbook":"xlsx","n_sheets":12,"sheets":["1月","2月","3月","4月","5月","6月","7月","8月","9月","10月","11月","12月"],"not_rendered":{"defined_names":40},"read":"whole","date_system":"1900"}

{"sheet":"1月","index":0,"n_rows":20,"n_cols":9,"rows_kept":20,"merged":[[16,2,17,2],[16,3,17,3],[17,4,19,8]]}
[null,"1 月","日",{"$f":"UPPER(TEXT(D3,\"aaa\"))","v":"一"},"二","三","四","五","六"]
[null,{"$f":"YEAR(TODAY())","v":2018}]
[null,null,{"$f":"星期日期和周+DATE(日历年,1,1)-WEEKDAY(DATE(日历年,1,1),(周开始日期=\"一\")+1)+1","v":"2017-12-31"},"2018-01-01","2018-01-02","2018-01-03","2018-01-04","2018-01-05","2018-01-06"]
[null,null,{"$f":"IF(DAY(日历日)=1,CONCATENATE(\"第 \",WEEKNUM(日历日),\" 周/第 \",日历日-DATE(YEAR(日历日),1,0),\" 天\"),CONCATENATE(\"第 \",日历日-DATE(YEAR(日历日),1,0),\" 天\"))","v":"第 365 天"},{"$f":"IF(DAY(日历日)=1,CONCATENATE(\"第 \",WEEKNUM(日历日),\" 周/第 \",日历日-DATE(YEAR(日历日),1,0),\" 天\"),CONCATENATE(\"第 \",日历日-DATE(YEAR(日历日),1,0),\" 天\"))","v":"第 1 周/第 1 天"},{"$f":"IF(DAY(日历日)=1,CONCATENATE(\"第 \",WEEKNUM(日历日),\" 周/第 \",日历日-DATE(YEAR(日历日),1,0),\" 天\"),CONCATENATE(\"第 \",日历日-DATE(YEAR(日历日),1,0),\" 天\"))","v":"第 2 天"},{"$f":"IF(DAY(日历日)=1,CONCATENATE(\"第 \",WEEKNUM(日历日),\" 周/第 \",日历日-DATE(YEAR(日历日),1,0),\" 天\"),CONCATENATE(\"第 \",日历日-DATE(YEAR(日历日),1,0),\" 天\"))","v":"第 3 天"},{"$f":"IF(DAY(日历日)=1,CONCATENATE(\"第 \",WEEKNUM(日历日),\" 周/第 \",日历日-DATE(YEAR(日历日),1,0),\" 天\"),CONCATENATE(\"第 \",日历日-DATE(YEAR(日历日),1,0),\" 天\"))","v":"第 4 天"},{"$f":"IF(DAY(日历日)=1,CONCATENATE(\"第 \",WEEKNUM(日历日),\" 周/第 \",日历日-DATE(YEAR(日历日),1,0),\" 天\"),CONCATENATE(\"第 \",日历日-DATE(YEAR(日历日),1,0),\" 天\"))","v":"第 5 天"},{"$f":"IF(DAY(日历日)=1,CONCATENATE(\"第 \",WEEKNUM(日历日),\" 周/第 \",日历日-DATE(YEAR(日历日),1,0),\" 天\"),CONCATENATE(\"第 \",日历日-DATE(YEAR(日历日),1,0),\" 天\"))","v":"第 6 天"}]
[]
[null,null,{"$f":"星期日期和周+DATE(日历年,1,1)-WEEKDAY(DATE(日历年,1,1),(周开始日期=\"MON\")+1)+8","v":"2018-01-07"},"2018-01-08","2018-01-09","2018-01-10","2018-01-11","2018-01-12","2018-01-13"]
[null,null,{"$f":"IF(WEEKDAY(日历日)=WeekStartValue,CONCATENATE(\"第 \",WEEKNUM(日历日),\" 周/第 \",日历日-DATE(YEAR(日历日),1,0),\" 天\"),CONCATENATE(\"第 \",日历日-DATE(YEAR(日历日),1,0),\" 天\"))","v":"第 2 周/第 7 天"},{"$f":"IF(WEEKDAY(日历日)=WeekStartValue,CONCATENATE(\"第 \",WEEKNUM(日历日),\" 周/第 \",日历日-DATE(YEAR(日历日),1,0),\" 天\"),CONCATENATE(\"第 \",日历日-DATE(YEAR(日历日),1,0),\" 天\"))","v":"第 8 天"},{"$f":"IF(WEEKDAY(日历日)=WeekStartValue,CONCATENATE(\"第 \",WEEKNUM(日历日),\" 周/第 \",日历日-DATE(YEAR(日历日),1,0),\" 天\"),CONCATENATE(\"第 \",日历日-DATE(YEAR(日历日),1,0),\" 天\"))","v":"第 9 天"},{"$f":"IF(WEEKDAY(日历日)=WeekStartValue,CONCATENATE(\"第 \",WEEKNUM(日历日),\" 周/第 \",日历日-DATE(YEAR(日历日),1,0),\" 天\"),CONCATENATE(\"第 \",日历日-DATE(YEAR(日历日),1,0),\" 天\"))","v":"第 10 天"},{"$f":"IF(WEEKDAY(日历日)=WeekStartValue,CONCATENATE(\"第 \",WEEKNUM(日历日),\" 周/第 \",日历日-DATE(YEAR(日历日),1,0),\" 天\"),CONCATENATE(\"第 \",日历日-DATE(YEAR(日历日),1,0),\" 天\"))","v":"第 11 天"},{"$f":"IF(WEEKDAY(日历日)=WeekStartValue,CONCATENATE(\"第 \",WEEKNUM(日历日),\" 周/第 \",日历日-DATE(YEAR(日历日),1,0),\" 天\"),CONCATENATE(\"第 \",日历日-DATE(YEAR(日历日),1,0),\" 天\"))","v":"第 12 天"},{"$f":"IF(WEEKDAY(日历日)=WeekStartValue,CONCATENATE(\"第 \",WEEKNUM(日历日),\" 周/第 \",日历日-DATE(YEAR(日历日),1,0),\" 天\"),CONCATENATE(\"第 \",日历日-DATE(YEAR(日历日),1,0),\" 天\"))","v":"第 13 天"}]
[]
[null,null,{"$f":"星期日期和周+DATE(日历年,1,1)-WEEKDAY(DATE(日历年,1,1),(周开始日期=\"MON\")+1)+15","v":"2018-01-14"},"2018-01-15","2018-01-16","2018-01-17","2018-01-18","2018-01-19","2018-01-20"]
[null,null,{"$f":"IF(WEEKDAY(日历日)=WeekStartValue,CONCATENATE(\"第 \",WEEKNUM(日历日),\" 周/第 \",日历日-DATE(YEAR(日历日),1,0),\" 天\"),CONCATENATE(\"第 \",日历日-DATE(YEAR(日历日),1,0),\" 天\"))","v":"第 3 周/第 14 天"},{"$f":"IF(WEEKDAY(日历日)=WeekStartValue,CONCATENATE(\"第 \",WEEKNUM(日历日),\" 周/第 \",日历日-DATE(YEAR(日历日),1,0),\" 天\"),CONCATENATE(\"第 \",日历日-DATE(YEAR(日历日),1,0),\" 天\"))","v":"第 15 天"},{"$f":"IF(WEEKDAY(日历日)=WeekStartValue,CONCATENATE(\"第 \",WEEKNUM(日历日),\" 周/第 \",日历日-DATE(YEAR(日历日),1,0),\" 天\"),CONCATENATE(\"第 \",日历日-DATE(YEAR(日历日),1,0),\" 天\"))","v":"第 16 天"},{"$f":"IF(WEEKDAY(日历日)=WeekStartValue,CONCATENATE(\"第 \",WEEKNUM(日历日),\" 周/第 \",日历日-DATE(YEAR(日历日),1,0),\" 天\"),CONCATENATE(\"第 \",日历日-DATE(YEAR(日历日),1,0),\" 天\"))","v":"第 17 天"},{"$f":"IF(WEEKDAY(日历日)=WeekStartValue,CONCATENATE(\"第 \",WEEKNUM(日历日),\" 周/第 \",日历日-DATE(YEAR(日历日),1,0),\" 天\"),CONCATENATE(\"第 \",日历日-DATE(YEAR(日历日),1,0),\" 天\"))","v":"第 18 天"},{"$f":"IF(WEEKDAY(日历日)=WeekStartValue,CONCATENATE(\"第 \",WEEKNUM(日历日),\" 周/第 \",日历日-DATE(YEAR(日历日),1,0),\" 天\"),CONCATENATE(\"第 \",日历日-DATE(YEAR(日历日),1,0),\" 天\"))","v":"第 19 天"},{"$f":"IF(WEEKDAY(日历日)=WeekStartValue,CONCATENATE(\"第 \",WEEKNUM(日历日),\" 周/第 \",日历日-DATE(YEAR(日历日),1,0),\" 天\"),CONCATENATE(\"第 \",日历日-DATE(YEAR(日历日),1,0),\" 天\"))","v":"第 20 天"}]
[]
[null,null,{"$f":"星期日期和周+DATE(日历年,1,1)-WEEKDAY(DATE(日历年,1,1),(周开始日期=\"MON\")+1)+22","v":"2018-01-21"},"2018-01-22","2018-01-23","2018-01-24","2018-01-25","2018-01-26","2018-01-27"]
[null,null,{"$f":"IF(WEEKDAY(日历日)=WeekStartValue,CONCATENATE(\"第 \",WEEKNUM(日历日),\" 周/第 \",日历日-DATE(YEAR(日历日),1,0),\" 天\"),CONCATENATE(\"第 \",日历日-DATE(YEAR(日历日),1,0),\" 天\"))","v":"第 4 周/第 21 天"},{"$f":"IF(WEEKDAY(日历日)=WeekStartValue,CONCATENATE(\"第 \",WEEKNUM(日历日),\" 周/第 \",日历日-DATE(YEAR(日历日),1,0),\" 天\"),CONCATENATE(\"第 \",日历日-DATE(YEAR(日历日),1,0),\" 天\"))","v":"第 22 天"},{"$f":"IF(WEEKDAY(日历日)=WeekStartValue,CONCATENATE(\"第 \",WEEKNUM(日历日),\" 周/第 \",日历日-DATE(YEAR(日历日),1,0),\" 天\"),CONCATENATE(\"第 \",日历日-DATE(YEAR(日历日),1,0),\" 天\"))","v":"第 23 天"},{"$f":"IF(WEEKDAY(日历日)=WeekStartValue,CONCATENATE(\"第 \",WEEKNUM(日历日),\" 周/第 \",日历日-DATE(YEAR(日历日),1,0),\" 天\"),CONCATENATE(\"第 \",日历日-DATE(YEAR(日历日),1,0),\" 天\"))","v":"第 24 天"},{"$f":"IF(WEEKDAY(日历日)=WeekStartValue,CONCATENATE(\"第 \",WEEKNUM(日历日),\" 周/第 \",日历日-DATE(YEAR(日历日),1,0),\" 天\"),CONCATENATE(\"第 \",日历日-DATE(YEAR(日历日),1,0),\" 天\"))","v":"第 25 天"},{"$f":"IF(WEEKDAY(日历日)=WeekStartValue,CONCATENATE(\"第 \",WEEKNUM(日历日),\" 周/第 \",日历日-DATE(YEAR(日历日),1,0),\" 天\"),CONCATENATE(\"第 \",日历日-DATE(YEAR(日历日),1,0),\" 天\"))","v":"第 26 天"},{"$f":"IF(WEEKDAY(日历日)=WeekStartValue,CONCATENATE(\"第 \",WEEKNUM(日历日),\" 周/第 \",日历日-DATE(YEAR(日历日),1,0),\" 天\"),CONCATENATE(\"第 \",日历日-DATE(YEAR(日历日),1,0),\" 天\"))","v":"第 27 天"}]
[]
[null,null,{"$f":"星期日期和周+DATE(日历年,1,1)-WEEKDAY(DATE(日历年,1,1),(周开始日期=\"MON\")+1)+29","v":"2018-01-28"},"2018-01-29","2018-01-30","2018-01-31","2018-02-01","2018-02-02","2018-02-03"]
[null,null,{"$f":"IF(WEEKDAY(日历日)=WeekStartValue,CONCATENATE(\"第 \",WEEKNUM(日历日),\" 周/第 \",日历日-DATE(YEAR(日历日),1,0),\" 天\"),CONCATENATE(\"第 \",日历日-DATE(YEAR(日历日),1,0),\" 天\"))","v":"第 5 周/第 28 天"},{"$f":"IF(WEEKDAY(日历日)=WeekStartValue,CONCATENATE(\"第 \",WEEKNUM(日历日),\" 周/第 \",日历日-DATE(YEAR(日历日),1,0),\" 天\"),CONCATENATE(\"第 \",日历日-DATE(YEAR(日历日),1,0),\" 天\"))","v":"第 29 天"},{"$f":"IF(WEEKDAY(日历日)=WeekStartValue,CONCATENATE(\"第 \",WEEKNUM(日历日),\" 周/第 \",日历日-DATE(YEAR(日历日),1,0),\" 天\"),CONCATENATE(\"第 \",日历日-DATE(YEAR(日历日),1,0),\" 天\"))","v":"第 30 天"},{"$f":"IF(WEEKDAY(日历日)=WeekStartValue,CONCATENATE(\"第 \",WEEKNUM(日历日),\" 周/第 \",日历日-DATE(YEAR(日历日),1,0),\" 天\"),CONCATENATE(\"第 \",日历日-DATE(YEAR(日历日),1,0),\" 天\"))","v":"第 31 天"},{"$f":"IF(WEEKDAY(日历日)=WeekStartValue,CONCATENATE(\"第 \",WEEKNUM(日历日),\" 周/第 \",日历日-DATE(YEAR(日历日),1,0),\" 天\"),CONCATENATE(\"第 \",日历日-DATE(YEAR(日历日),1,0),\" 天\"))","v":"第 32 天"},{"$f":"IF(WEEKDAY(日历日)=WeekStartValue,CONCATENATE(\"第 \",WEEKNUM(日历日),\" 周/第 \",日历日-DATE(YEAR(日历日),1,0),\" 天\"),CONCATENATE(\"第 \",日历日-DATE(YEAR(日历日),1,0),\" 天\"))","v":"第 33 天"},{"$f":"IF(WEEKDAY(日历日)=WeekStartValue,CONCATENATE(\"第 \",WEEKNUM(日历日),\" 周/第 \",日历日-DATE(YEAR(日历日),1,0),\" 天\"),CONCATENATE(\"第 \",日历日-DATE(YEAR(日历日),1,0),\" 天\"))","v":"第 34 天"}]
[{"$nulls":4},"备注"]
[]
[null,null,{"$f":"星期日期和周+DATE(日历年,1,1)-WEEKDAY(DATE(日历年,1,1),(周开始日期=\"MON\")+1)+36","v":"2018-02-04"},"2018-02-05"]
[null,null,{"$f":"IF(WEEKDAY(日历日)=WeekStartValue,CONCATENATE(\"第 \",WEEKNUM(日历日),\" 周/第 \",日历日-DATE(YEAR(日历日),1,0),\" 天\"),CONCATENATE(\"第 \",日历日-DATE(YEAR(日历日),1,0),\" 天\"))","v":"第 6 周/第 35 天"},{"$f":"IF(WEEKDAY(日历日)=WeekStartValue,CONCATENATE(\"第 \",WEEKNUM(日历日),\" 周/第 \",日历日-DATE(YEAR(日历日),1,0),\" 天\"),CONCATENATE(\"第 \",日历日-DATE(YEAR(日历日),1,0),\" 天\"))","v":"第 36 天"}]

{"sheet":"2月","index":1,"n_rows":20,"n_cols":9,"rows_kept":20,"merged":[[16,2,17,2],[17,4,19,8]]}
[null,"2 月",{"$f":"UPPER(TEXT(周开始日期,\"ddd\"))","v":"日"},{"$f":"UPPER(TEXT(D3,\"aaa\"))","v":"一"},"二","三","四","五","六"]
[null,{"$f":"日历年","v":2018}]
[null,null,{"$f":"星期日期和周+DATE(日历年,2,1)-WEEKDAY(DATE(日历年,2,1),(周开始日期=\"一\")+1)+1","v":"2018-01-28"},"2018-01-29","2018-01-30","2018-01-31","2018-02-01","2018-02-02","2018-02-03"]
[null,null,{"$f":"IF(DAY(日历日)=1,CONCATENATE(\"第 \",WEEKNUM(日历日),\" 周/第 \",日历日-DATE(YEAR(日历日),1,0),\" 天\"),CONCATENATE(\"第 \",日历日-DATE(YEAR(日历日),1,0),\" 天\"))","v":"第 28 天"},{"$f":"IF(DAY(日历日)=1,CONCATENATE(\"第 \",WEEKNUM(日历日),\" 周/第 \",日历日-DATE(YEAR(日历日),1,0),\" 天\"),CONCATENATE(\"第 \",日历日-DATE(YEAR(日历日),1,0),\" 天\"))","v":"第 29 天"},{"$f":"IF(DAY(日历日)=1,CONCATENATE(\"第 \",WEEKNUM(日历日),\" 周/第 \",日历日-DATE(YEAR(日历日),1,0),\" 天\"),CONCATENATE(\"第 \",日历日-DATE(YEAR(日历日),1,0),\" 天\"))","v":"第 30 天"},{"$f":"IF(DAY(日历日)=1,CONCATENATE(\"第 \",WEEKNUM(日历日),\" 周/第 \",日历日-DATE(YEAR(日历日),1,0),\" 天\"),CONCATENATE(\"第 \",日历日-DATE(YEAR(日历日),1,0),\" 天\"))","v":"第 31 天"},{"$f":"IF(DAY(日历日)=1,CONCATENATE(\"第 \",WEEKNUM(日历日),\" 周/第 \",日历日-DATE(YEAR(日历日),1,0),\" 天\"),CONCATENATE(\"第 \",日历日-DATE(YEAR(日历日),1,0),\" 天\"))","v":"第 5 周/第 32 天"},{"$f":"IF(DAY(日历日)=1,CONCATENATE(\"第 \",WEEKNUM(日历日),\" 周/第 \",日历日-DATE(YEAR(日历日),1,0),\" 天\"),CONCATENATE(\"第 \",日历日-DATE(YEAR(日历日),1,0),\" 天\"))","v":"第 33 天"},{"$f":"IF(DAY(日历日)=1,CONCATENATE(\"第 \",WEEKNUM(日历日),\" 周/第 \",日历日-DATE(YEAR(日历日),1,0),\" 天\"),CONCATENATE(\"第 \",日历日-DATE(YEAR(日历日),1,0),\" 天\"))","v":"第 34 天"}]
[]
[null,null,{"$f":"星期日期和周+DATE(日历年,2,1)-WEEKDAY(DATE(日历年,2,1),(周开始日期=\"一\")+1)+8","v":"2018-02-04"},"2018-02-05","2018-02-06","2018-02-07","2018-02-08","2018-02-09","2018-02-10"]
[null,null,{"$f":"IF(WEEKDAY(日历日)=WeekStartValue,CONCATENATE(\"第 \",WEEKNUM(日历日),\" 周/第 \",日历日-DATE(YEAR(日历日),1,0),\" 天\"),CONCATENATE(\"第 \",日历日-DATE(YEAR(日历日),1,0),\" 天\"))","v":"第 6 周/第 35 天"},{"$f":"IF(WEEKDAY(日历日)=WeekStartValue,CONCATENATE(\"第 \",WEEKNUM(日历日),\" 周/第 \",日历日-DATE(YEAR(日历日),1,0),\" 天\"),CONCATENATE(\"第 \",日历日-DATE(YEAR(日历日),1,0),\" 天\"))","v":"第 36 天"},{"$f":"IF(WEEKDAY(日历日)=WeekStartValue,CONCATENATE(\"第 \",WEEKNUM(日历日),\" 周/第 \",日历日-DATE(YEAR(日历日),1,0),\" 天\"),CONCATENATE(\"第 \",日历日-DATE(YEAR(日历日),1,0),\" 天\"))","v":"第 37 天"},{"$f":"IF(WEEKDAY(日历日)=WeekStartValue,CONCATENATE(\"第 \",WEEKNUM(日历日),\" 周/第 \",日历日-DATE(YEAR(日历日),1,0),\" 天\"),CONCATENATE(\"第 \",日历日-DATE(YEAR(日历日),1,0),\" 天\"))","v":"第 38 天"},{"$f":"IF(WEEKDAY(日历日)=WeekStartValue,CONCATENATE(\"第 \",WEEKNUM(日历日),\" 周/第 \",日历日-DATE(YEAR(日历日),1,0),\" 天\"),CONCATENATE(\"第 \",日历日-DATE(YEAR(日历日),1,0),\" 天\"))","v":"第 39 天"},{"$f":"IF(WEEKDAY(日历日)=WeekStartValue,CONCATENATE(\"第 \",WEEKNUM(日历日),\" 周/第 \",日历日-DATE(YEAR(日历日),1,0),\" 天\"),CONCATENATE(\"第 \",日历日-DATE(YEAR(日历日),1,0),\" 天\"))","v":"第 40 天"},{"$f":"IF(WEEKDAY(日历日)=WeekStartValue,CONCATENATE(\"第 \",WEEKNUM(日历日),\" 周/第 \",日历日-DATE(YEAR(日历日),1,0),\" 天\"),CONCATENATE(\"第 \",日历日-DATE(YEAR(日历日),1,0),\" 天\"))","v":"第 41 天"}]
[]
[null,null,{"$f":"星期日期和周+DATE(日历年,2,1)-WEEKDAY(DATE(日历年,2,1),(周开始日期=\"一\")+1)+15","v":"2018-02-11"},"2018-02-12","2018-02-13","2018-02-14","2018-02-15","2018-02-16","2018-02-17"]
[null,null,{"$f":"IF(WEEKDAY(日历日)=WeekStartValue,CONCATENATE(\"第 \",WEEKNUM(日历日),\" 周/第 \",日历日-DATE(YEAR(日历日),1,0),\" 天\"),CONCATENATE(\"第 \",日历日-DATE(YEAR(日历日),1,0),\" 天\"))","v":"第 7 周/第 42 天"},{"$f":"IF(WEEKDAY(日历日)=WeekStartValue,CONCATENATE(\"第 \",WEEKNUM(日历日),\" 周/第 \",日历日-DATE(YEAR(日历日),1,0),\" 天\"),CONCATENATE(\"第 \",日历日-DATE(YEAR(日历日),1,0),\" 天\"))","v":"第 43 天"},{"$f":"IF(WEEKDAY(日历日)=WeekStartValue,CONCATENATE(\"第 \",WEEKNUM(日历日),\" 周/第 \",日历日-DATE(YEAR(日历日),1,0),\" 天\"),CONCATENATE(\"第 \",日历日-DATE(YEAR(日历日),1,0),\" 天\"))","v":"第 44 天"},{"$f":"IF(WEEKDAY(日历日)=WeekStartValue,CONCATENATE(\"第 \",WEEKNUM(日历日),\" 周/第 \",日历日-DATE(YEAR(日历日),1,0),\" 天\"),CONCATENATE(\"第 \",日历日-DATE(YEAR(日历日),1,0),\" 天\"))","v":"第 45 天"},{"$f":"IF(WEEKDAY(日历日)=WeekStartValue,CONCATENATE(\"第 \",WEEKNUM(日历日),\" 周/第 \",日历日-DATE(YEAR(日历日),1,0),\" 天\"),CONCATENATE(\"第 \",日历日-DATE(YEAR(日历日),1,0),\" 天\"))","v":"第 46 天"},{"$f":"IF(WEEKDAY(日历日)=WeekStartValue,CONCATENATE(\"第 \",WEEKNUM(日历日),\" 周/第 \",日历日-DATE(YEAR(日历日),1,0),\" 天\"),CONCATENATE(\"第 \",日历日-DATE(YEAR(日历日),1,0),\" 天\"))","v":"第 47 天"},{"$f":"IF(WEEKDAY(日历日)=WeekStartValue,CONCATENATE(\"第 \",WEEKNUM(日历日),\" 周/第 \",日历日-DATE(YEAR(日历日),1,0),\" 天\"),CONCATENATE(\"第 \",日历日-DATE(YEAR(日历日),1,0),\" 天\"))","v":"第 48 天"}]
[]
[null,null,{"$f":"星期日期和周+DATE(日历年,2,1)-WEEKDAY(DATE(日历年,2,1),(周开始日期=\"一\")+1)+22","v":"2018-02-18"},"2018-02-19","2018-02-20","2018-02-21","2018-02-22","2018-02-23","2018-02-24"]
[null,null,{"$f":"IF(WEEKDAY(日历日)=WeekStartValue,CONCATENATE(\"第 \",WEEKNUM(日历日),\" 周/第 \",日历日-DATE(YEAR(日历日),1,0),\" 天\"),CONCATENATE(\"第 \",日历日-DATE(YEAR(日历日),1,0),\" 天\"))","v":"第 8 周/第 49 天"},{"$f":"IF(WEEKDAY(日历日)=WeekStartValue,CONCATENATE(\"第 \",WEEKNUM(日历日),\" 周/第 \",日历日-DATE(YEAR(日历日),1,0),\" 天\"),CONCATENATE(\"第 \",日历日-DATE(YEAR(日历日),1,0),\" 天\"))","v":"第 50 天"},{"$f":"IF(WEEKDAY(日历日)=WeekStartValue,CONCATENATE(\"第 \",WEEKNUM(日历日),\" 周/第 \",日历日-DATE(YEAR(日历日),1,0),\" 天\"),CONCATENATE(\"第 \",日历日-DATE(YEAR(日历日),1,0),\" 天\"))","v":"第 51 天"},{"$f":"IF(WEEKDAY(日历日)=WeekStartValue,CONCATENATE(\"第 \",WEEKNUM(日历日),\" 周/第 \",日历日-DATE(YEAR(日历日),1,0),\" 天\"),CONCATENATE(\"第 \",日历日-DATE(YEAR(日历日),1,0),\" 天\"))","v":"第 52 天"},{"$f":"IF(WEEKDAY(日历日)=WeekStartValue,CONCATENATE(\"第 \",WEEKNUM(日历日),\" 周/第 \",日历日-DATE(YEAR(日历日),1,0),\" 天\"),CONCATENATE(\"第 \",日历日-DATE(YEAR(日历日),1,0),\" 天\"))","v":"第 53 天"},{"$f":"IF(WEEKDAY(日历日)=WeekStartValue,CONCATENATE(\"第 \",WEEKNUM(日历日),\" 周/第 \",日历日-DATE(YEAR(日历日),1,0),\" 天\"),CONCATENATE(\"第 \",日历日-DATE(YEAR(日历日),1,0),\" 天\"))","v":"第 54 天"},{"$f":"IF(WEEKDAY(日历日)=WeekStartValue,CONCATENATE(\"第 \",WEEKNUM(日历日),\" 周/第 \",日历日-DATE(YEAR(日历日),1,0),\" 天\"),CONCATENATE(\"第 \",日历日-DATE(YEAR(日历日),1,0),\" 天\"))","v":"第 55 天"}]
[]
[null,null,{"$f":"星期日期和周+DATE(日历年,2,1)-WEEKDAY(DATE(日历年,2,1),(周开始日期=\"一\")+1)+29","v":"2018-02-25"},"2018-02-26","2018-02-27","2018-02-28","2018-03-01","2018-03-02","2018-03-03"]
[null,null,{"$f":"IF(WEEKDAY(日历日)=WeekStartValue,CONCATENATE(\"第 \",WEEKNUM(日历日),\" 周/第 \",日历日-DATE(YEAR(日历日),1,0),\" 天\"),CONCATENATE(\"第 \",日历日-DATE(YEAR(日历日),1,0),\" 天\"))","v":"第 9 周/第 56 天"},{"$f":"IF(WEEKDAY(日历日)=WeekStartValue,CONCATENATE(\"第 \",WEEKNUM(日历日),\" 周/第 \",日历日-DATE(YEAR(日历日),1,0),\" 天\"),CONCATENATE(\"第 \",日历日-DATE(YEAR(日历日),1,0),\" 天\"))","v":"第 57 天"},{"$f":"IF(WEEKDAY(日历日)=WeekStartValue,CONCATENATE(\"第 \",WEEKNUM(日历日),\" 周/第 \",日历日-DATE(YEAR(日历日),1,0),\" 天\"),CONCATENATE(\"第 \",日历日-DATE(YEAR(日历日),1,0),\" 天\"))","v":"第 58 天"},{"$f":"IF(WEEKDAY(日历日)=WeekStartValue,CONCATENATE(\"第 \",WEEKNUM(日历日),\" 周/第 \",日历日-DATE(YEAR(日历日),1,0),\" 天\"),CONCATENATE(\"第 \",日历日-DATE(YEAR(日历日),1,0),\" 天\"))","v":"第 59 天"},{"$f":"IF(WEEKDAY(日历日)=WeekStartValue,CONCATENATE(\"第 \",WEEKNUM(日历日),\" 周/第 \",日历日-DATE(YEAR(日历日),1,0),\" 天\"),CONCATENATE(\"第 \",日历日-DATE(YEAR(日历日),1,0),\" 天\"))","v":"第 60 天"},{"$f":"IF(WEEKDAY(日历日)=WeekStartValue,CONCATENATE(\"第 \",WEEKNUM(日历日),\" 周/第 \",日历日-DATE(YEAR(日历日),1,0),\" 天\"),CONCATENATE(\"第 \",日历日-DATE(YEAR(日历日),1,0),\" 天\"))","v":"第 61 天"},{"$f":"IF(WEEKDAY(日历日)=WeekStartValue,CONCATENATE(\"第 \",WEEKNUM(日历日),\" 周/第 \",日历日-DATE(YEAR(日历日),1,0),\" 天\"),CONCATENATE(\"第 \",日历日-DATE(YEAR(日历日),1,0),\" 天\"))","v":"第 62 天"}]
[{"$nulls":4},"备注"]
[]
[null,null,{"$f":"星期日期和周+DATE(日历年,2,1)-WEEKDAY(DATE(日历年,2,1),(周开始日期=\"一\")+1)+36","v":"2018-03-04"},"2018-03-05"]
[null,null,{"$f":"IF(WEEKDAY(日历日)=WeekStartValue,CONCATENATE(\"第 \",WEEKNUM(日历日),\" 周/第 \",日历日-DATE(YEAR(日历日),1,0),\" 天\"),CONCATENATE(\"第 \",日历日-DATE(YEAR(日历日),1,0),\" 天\"))","v":"第 10 周/第 63 天"},{"$f":"IF(WEEKDAY(日历日)=WeekStartValue,CONCATENATE(\"第 \",WEEKNUM(日历日),\" 周/第 \",日历日-DATE(YEAR(日历日),1,0),\" 天\"),CONCATENATE(\"第 \",日历日-DATE(YEAR(日历日),1,0),\" 天\"))","v":"第 64 天"}]

{"sheet":"3月","index":2,"n_rows":20,"n_cols":9,"rows_kept":20,"merged":[[16,2,17,2],[17,4,19,8]]}
[null,"3 月",{"$f":"UPPER(TEXT(周开始日期,\"ddd\"))","v":"日"},{"$f":"UPPER(TEXT(D3,\"aaa\"))","v":"一"},"二","三","四","五","六"]
[null,{"$f":"日历年","v":2018}]
[null,null,{"$f":"星期日期和周+DATE(日历年,3,1)-WEEKDAY(DATE(日历年,3,1),(周开始日期=\"一\")+1)+1","v":"2018-02-25"},"2018-02-26","2018-02-27","2018-02-28","2018-03-01","2018-03-02","2018-03-03"]
[null,null,{"$f":"IF(DAY(日历日)=1,CONCATENATE(\"第 \",WEEKNUM(日历日),\" 周/第 \",日历日-DATE(YEAR(日历日),1,0),\" 天\"),CONCATENATE(\"第 \",日历日-DATE(YEAR(日历日),1,0),\" 天\"))","v":"第 56 天"},{"$f":"IF(DAY(日历日)=1,CONCATENATE(\"第 \",WEEKNUM(日历日),\" 周/第 \",日历日-DATE(YEAR(日历日),1,0),\" 天\"),CONCATENATE(\"第 \",日历日-DATE(YEAR(日历日),1,0),\" 天\"))","v":"第 57 天"},{"$f":"IF(DAY(日历日)=1,CONCATENATE(\"第 \",WEEKNUM(日历日),\" 周/第 \",日历日-DATE(YEAR(日历日),1,0),\" 天\"),CONCATENATE(\"第 \",日历日-DATE(YEAR(日历日),1,0),\" 天\"))","v":"第 58 天"},{"$f":"IF(DAY(日历日)=1,CONCATENATE(\"第 \",WEEKNUM(日历日),\" 周/第 \",日历日-DATE(YEAR(日历日),1,0),\" 天\"),CONCATENATE(\"第 \",日历日-DATE(YEAR(日历日),1,0),\" 天\"))","v":"第 59 天"},{"$f":"IF(DAY(日历日)=1,CONCATENATE(\"第 \",WEEKNUM(日历日),\" 周/第 \",日历日-DATE(YEAR(日历日),1,0),\" 天\"),CONCATENATE(\"第 \",日历日-DATE(YEAR(日历日),1,0),\" 天\"))","v":"第 9 周/第 60 天"},{"$f":"IF(DAY(日历日)=1,CONCATENATE(\"第 \",WEEKNUM(日历日),\" 周/第 \",日历日-DATE(YEAR(日历日),1,0),\" 天\"),CONCATENATE(\"第 \",日历日-DATE(YEAR(日历日),1,0),\" 天\"))","v":"第 61 天"},{"$f":"IF(DAY(日历日)=1,CONCATENATE(\"第 \",WEEKNUM(日历日),\" 周/第 \",日历日-DATE(YEAR(日历日),1,0),\" 天\"),CONCATENATE(\"第 \",日历日-DATE(YEAR(日历日),1,0),\" 天\"))","v":"第 62 天"}]
[]
[null,null,{"$f":"星期日期和周+DATE(日历年,3,1)-WEEKDAY(DATE(日历年,3,1),(周开始日期=\"一\")+1)+8","v":"2018-03-04"},"2018-03-05","2018-03-06","2018-03-07","2018-03-08","2018-03-09","2018-03-10"]
[null,null,{"$f":"IF(WEEKDAY(日历日)=WeekStartValue,CONCATENATE(\"第 \",WEEKNUM(日历日),\" 周/第 \",日历日-DATE(YEAR(日历日),1,0),\" 天\"),CONCATENATE(\"第 \",日历日-DATE(YEAR(日历日),1,0),\" 天\"))","v":"第 10 周/第 63 天"},{"$f":"IF(WEEKDAY(日历日)=WeekStartValue,CONCATENATE(\"第 \",WEEKNUM(日历日),\" 周/第 \",日历日-DATE(YEAR(日历日),1,0),\" 天\"),CONCATENATE(\"第 \",日历日-DATE(YEAR(日历日),1,0),\" 天\"))","v":"第 64 天"},{"$f":"IF(WEEKDAY(日历日)=WeekStartValue,CONCATENATE(\"第 \",WEEKNUM(日历日),\" 周/第 \",日历日-DATE(YEAR(日历日),1,0),\" 天\"),CONCATENATE(\"第 \",日历日-DATE(YEAR(日历日),1,0),\" 天\"))","v":"第 65 天"},{"$f":"IF(WEEKDAY(日历日)=WeekStartValue,CONCATENATE(\"第 \",WEEKNUM(日历日),\" 周/第 \",日历日-DATE(YEAR(日历日),1,0),\" 天\"),CONCATENATE(\"第 \",日历日-DATE(YEAR(日历日),1,0),\" 天\"))","v":"第 66 天"},{"$f":"IF(WEEKDAY(日历日)=WeekStartValue,CONCATENATE(\"第 \",WEEKNUM(日历日),\" 周/第 \",日历日-DATE(YEAR(日历日),1,0),\" 天\"),CONCATENATE(\"第 \",日历日-DATE(YEAR(日历日),1,0),\" 天\"))","v":"第 67 天"},{"$f":"IF(WEEKDAY(日历日)=WeekStartValue,CONCATENATE(\"第 \",WEEKNUM(日历日),\" 周/第 \",日历日-DATE(YEAR(日历日),1,0),\" 天\"),CONCATENATE(\"第 \",日历日-DATE(YEAR(日历日),1,0),\" 天\"))","v":"第 68 天"},{"$f":"IF(WEEKDAY(日历日)=WeekStartValue,CONCATENATE(\"第 \",WEEKNUM(日历日),\" 周/第 \",日历日-DATE(YEAR(日历日),1,0),\" 天\"),CONCATENATE(\"第 \",日历日-DATE(YEAR(日历日),1,0),\" 天\"))","v":"第 69 天"}]
[]
[null,null,{"$f":"星期日期和周+DATE(日历年,3,1)-WEEKDAY(DATE(日历年,3,1),(周开始日期=\"一\")+1)+15","v":"2018-03-11"},"2018-03-12","2018-03-13","2018-03-14","2018-03-15","2018-03-16","2018-03-17"]
[null,null,{"$f":"IF(WEEKDAY(日历日)=WeekStartValue,CONCATENATE(\"第 \",WEEKNUM(日历日),\" 周/第 \",日历日-DATE(YEAR(日历日),1,0),\" 天\"),CONCATENATE(\"第 \",日历日-DATE(YEAR(日历日),1,0),\" 天\"))","v":"第 11 周/第 70 天"},{"$f":"IF(WEEKDAY(日历日)=WeekStartValue,CONCATENATE(\"第 \",WEEKNUM(日历日),\" 周/第 \",日历日-DATE(YEAR(日历日),1,0),\" 天\"),CONCATENATE(\"第 \",日历日-DATE(YEAR(日历日),1,0),\" 天\"))","v":"第 71 天"},{"$f":"IF(WEEKDAY(日历日)=WeekStartValue,CONCATENATE(\"第 \",WEEKNUM(日历日),\" 周/第 \",日历日-DATE(YEAR(日历日),1,0),\" 天\"),CONCATENATE(\"第 \",日历日-DATE(YEAR(日历日),1,0),\" 天\"))","v":"第 72 天"},{"$f":"IF(WEEKDAY(日历日)=WeekStartValue,CONCATENATE(\"第 \",WEEKNUM(日历日),\" 周/第 \",日历日-DATE(YEAR(日历日),1,0),\" 天\"),CONCATENATE(\"第 \",日历日-DATE(YEAR(日历日),1,0),\" 天\"))","v":"第 73 天"},{"$f":"IF(WEEKDAY(日历日)=WeekStartValue,CONCATENATE(\"第 \",WEEKNUM(日历日),\" 周/第 \",日历日-DATE(YEAR(日历日),1,0),\" 天\"),CONCATENATE(\"第 \",日历日-DATE(YEAR(日历日),1,0),\" 天\"))","v":"第 74 天"},{"$f":"IF(WEEKDAY(日历日)=WeekStartValue,CONCATENATE(\"第 \",WEEKNUM(日历日),\" 周/第 \",日历日-DATE(YEAR(日历日),1,0),\" 天\"),CONCATENATE(\"第 \",日历日-DATE(YEAR(日历日),1,0),\" 天\"))","v":"第 75 天"},{"$f":"IF(WEEKDAY(日历日)=WeekStartValue,CONCATENATE(\"第 \",WEEKNUM(日历日),\" 周/第 \",日历日-DATE(YEAR(日历日),1,0),\" 天\"),CONCATENATE(\"第 \",日历日-DATE(YEAR(日历日),1,0),\" 天\"))","v":"第 76 天"}]
[]
[null,null,{"$f":"星期日期和周+DATE(日历年,3,1)-WEEKDAY(DATE(日历年,3,1),(周开始日期=\"一\")+1)+22","v":"2018-03-18"},"2018-03-19","2018-03-20","2018-03-21","2018-03-22","2018-03-23","2018-03-24"]
[null,null,{"$f":"IF(WEEKDAY(日历日)=WeekStartValue,CONCATENATE(\"第 \",WEEKNUM(日历日),\" 周/第 \",日历日-DATE(YEAR(日历日),1,0),\" 天\"),CONCATENATE(\"第 \",日历日-DATE(YEAR(日历日),1,0),\" 天\"))","v":"第 12 周/第 77 天"},{"$f":"IF(WEEKDAY(日历日)=WeekStartValue,CONCATENATE(\"第 \",WEEKNUM(日历日),\" 周/第 \",日历日-DATE(YEAR(日历日),1,0),\" 天\"),CONCATENATE(\"第 \",日历日-DATE(YEAR(日历日),1,0),\" 天\"))","v":"第 78 天"},{"$f":"IF(WEEKDAY(日历日)=WeekStartValue,CONCATENATE(\"第 \",WEEKNUM(日历日),\" 周/第 \",日历日-DATE(YEAR(日历日),1,0),\" 天\"),CONCATENATE(\"第 \",日历日-DATE(YEAR(日历日),1,0),\" 天\"))","v":"第 79 天"},{"$f":"IF(WEEKDAY(日历日)=WeekStartValue,CONCATENATE(\"第 \",WEEKNUM(日历日),\" 周/第 \",日历日-DATE(YEAR(日历日),1,0),\" 天\"),CONCATENATE(\"第 \",日历日-DATE(YEAR(日历日),1,0),\" 天\"))","v":"第 80 天"},{"$f":"IF(WEEKDAY(日历日)=WeekStartValue,CONCATENATE(\"第 \",WEEKNUM(日历日),\" 周/第 \",日历日-DATE(YEAR(日历日),1,0),\" 天\"),CONCATENATE(\"第 \",日历日-DATE(YEAR(日历日),1,0),\" 天\"))","v":"第 81 天"},{"$f":"IF(WEEKDAY(日历日)=WeekStartValue,CONCATENATE(\"第 \",WEEKNUM(日历日),\" 周/第 \",日历日-DATE(YEAR(日历日),1,0),\" 天\"),CONCATENATE(\"第 \",日历日-DATE(YEAR(日历日),1,0),\" 天\"))","v":"第 82 天"},{"$f":"IF(WEEKDAY(日历日)=WeekStartValue,CONCATENATE(\"第 \",WEEKNUM(日历日),\" 周/第 \",日历日-DATE(YEAR(日历日),1,0),\" 天\"),CONCATENATE(\"第 \",日历日-DATE(YEAR(日历日),1,0),\" 天\"))","v":"第 83 天"}]
[]
[null,null,{"$f":"星期日期和周+DATE(日历年,3,1)-WEEKDAY(DATE(日历年,3,1),(周开始日期=\"一\")+1)+29","v":"2018-03-25"},"2018-03-26","2018-03-27","2018-03-28","2018-03-29","2018-03-30","2018-03-31"]
[null,null,{"$f":"IF(WEEKDAY(日历日)=WeekStartValue,CONCATENATE(\"第 \",WEEKNUM(日历日),\" 周/第 \",日历日-DATE(YEAR(日历日),1,0),\" 天\"),CONCATENATE(\"第 \",日历日-DATE(YEAR(日历日),1,0),\" 天\"))","v":"第 13 周/第 84 天"},{"$f":"IF(WEEKDAY(日历日)=WeekStartValue,CONCATENATE(\"第 \",WEEKNUM(日历日),\" 周/第 \",日历日-DATE(YEAR(日历日),1,0),\" 天\"),CONCATENATE(\"第 \",日历日-DATE(YEAR(日历日),1,0),\" 天\"))","v":"第 85 天"},{"$f":"IF(WEEKDAY(日历日)=WeekStartValue,CONCATENATE(\"第 \",WEEKNUM(日历日),\" 周/第 \",日历日-DATE(YEAR(日历日),1,0),\" 天\"),CONCATENATE(\"第 \",日历日-DATE(YEAR(日历日),1,0),\" 天\"))","v":"第 86 天"},{"$f":"IF(WEEKDAY(日历日)=WeekStartValue,CONCATENATE(\"第 \",WEEKNUM(日历日),\" 周/第 \",日历日-DATE(YEAR(日历日),1,0),\" 天\"),CONCATENATE(\"第 \",日历日-DATE(YEAR(日历日),1,0),\" 天\"))","v":"第 87 天"},{"$f":"IF(WEEKDAY(日历日)=WeekStartValue,CONCATENATE(\"第 \",WEEKNUM(日历日),\" 周/第 \",日历日-DATE(YEAR(日历日),1,0),\" 天\"),CONCATENATE(\"第 \",日历日-DATE(YEAR(日历日),1,0),\" 天\"))","v":"第 88 天"},{"$f":"IF(WEEKDAY(日历日)=WeekStartValue,CONCATENATE(\"第 \",WEEKNUM(日历日),\" 周/第 \",日历日-DATE(YEAR(日历日),1,0),\" 天\"),CONCATENATE(\"第 \",日历日-DATE(YEAR(日历日),1,0),\" 天\"))","v":"第 89 天"},{"$f":"IF(WEEKDAY(日历日)=WeekStartValue,CONCATENATE(\"第 \",WEEKNUM(日历日),\" 周/第 \",日历日-DATE(YEAR(日历日),1,0),\" 天\"),CONCATENATE(\"第 \",日历日-DATE(YEAR(日历日),1,0),\" 天\"))","v":"第 90 天"}]
[{"$nulls":4},"备注"]
[]
[null,null,{"$f":"星期日期和周+DATE(日历年,3,1)-WEEKDAY(DATE(日历年,3,1),(周开始日期=\"一\")+1)+36","v":"2018-04-01"},"2018-04-02"]
[null,null,{"$f":"IF(WEEKDAY(日历日)=WeekStartValue,CONCATENATE(\"第 \",WEEKNUM(日历日),\" 周/第 \",日历日-DATE(YEAR(日历日),1,0),\" 天\"),CONCATENATE(\"第 \",日历日-DATE(YEAR(日历日),1,0),\" 天\"))","v":"第 14 周/第 91 天"},{"$f":"IF(WEEKDAY(日历日)=WeekStartValue,CONCATENATE(\"第 \",WEEKNUM(日历日),\" 周/第 \",日历日-DATE(YEAR(日历日),1,0),\" 天\"),CONCATENATE(\"第 \",日历日-DATE(YEAR(日历日),1,0),\" 天\"))","v":"第 92 天"}]

{"sheet":"4月","index":3,"n_rows":20,"n_cols":9,"rows_kept":20,"merged":[[16,2,17,2],[17,4,19,8]]}
[null,"4 月",{"$f":"UPPER(TEXT(周开始日期,\"ddd\"))","v":"日"},{"$f":"UPPER(TEXT(D3,\"aaa\"))","v":"一"},"二","三","四","五","六"]
[null,{"$f":"日历年","v":2018}]
[null,null,{"$f":"星期日期和周+DATE(日历年,4,1)-WEEKDAY(DATE(日历年,4,1),(周开始日期=\"一\")+1)+1","v":"2018-04-01"},"2018-04-02","2018-04-03","2018-04-04","2018-04-05","2018-04-06","2018-04-07"]
[null,null,{"$f":"IF(DAY(日历日)=1,CONCATENATE(\"第 \",WEEKNUM(日历日),\" 周/第 \",日历日-DATE(YEAR(日历日),1,0),\" 天\"),CONCATENATE(\"第 \",日历日-DATE(YEAR(日历日),1,0),\" 天\"))","v":"第 14 周/第 91 天"},{"$f":"IF(DAY(日历日)=1,CONCATENATE(\"第 \",WEEKNUM(日历日),\" 周/第 \",日历日-DATE(YEAR(日历日),1,0),\" 天\"),CONCATENATE(\"第 \",日历日-DATE(YEAR(日历日),1,0),\" 天\"))","v":"第 92 天"},{"$f":"IF(DAY(日历日)=1,CONCATENATE(\"第 \",WEEKNUM(日历日),\" 周/第 \",日历日-DATE(YEAR(日历日),1,0),\" 天\"),CONCATENATE(\"第 \",日历日-DATE(YEAR(日历日),1,0),\" 天\"))","v":"第 93 天"},{"$f":"IF(DAY(日历日)=1,CONCATENATE(\"第 \",WEEKNUM(日历日),\" 周/第 \",日历日-DATE(YEAR(日历日),1,0),\" 天\"),CONCATENATE(\"第 \",日历日-DATE(YEAR(日历日),1,0),\" 天\"))","v":"第 94 天"},{"$f":"IF(DAY(日历日)=1,CONCATENATE(\"第 \",WEEKNUM(日历日),\" 周/第 \",日历日-DATE(YEAR(日历日),1,0),\" 天\"),CONCATENATE(\"第 \",日历日-DATE(YEAR(日历日),1,0),\" 天\"))","v":"第 95 天"},{"$f":"IF(DAY(日历日)=1,CONCATENATE(\"第 \",WEEKNUM(日历日),\" 周/第 \",日历日-DATE(YEAR(日历日),1,0),\" 天\"),CONCATENATE(\"第 \",日历日-DATE(YEAR(日历日),1,0),\" 天\"))","v":"第 96 天"},{"$f":"IF(DAY(日历日)=1,CONCATENATE(\"第 \",WEEKNUM(日历日),\" 周/第 \",日历日-DATE(YEAR(日历日),1,0),\" 天\"),CONCATENATE(\"第 \",日历日-DATE(YEAR(日历日),1,0),\" 天\"))","v":"第 97 天"}]
[]
[null,null,{"$f":"星期日期和周+DATE(日历年,4,1)-WEEKDAY(DATE(日历年,4,1),(周开始日期=\"一\")+1)+8","v":"2018-04-08"},"2018-04-09","2018-04-10","2018-04-11","2018-04-12","2018-04-13","2018-04-14"]
[null,null,{"$f":"IF(WEEKDAY(日历日)=WeekStartValue,CONCATENATE(\"第 \",WEEKNUM(日历日),\" 周/第 \",日历日-DATE(YEAR(日历日),1,0),\" 天\"),CONCATENATE(\"第 \",日历日-DATE(YEAR(日历日),1,0),\" 天\"))","v":"第 15 周/第 98 天"},{"$f":"IF(WEEKDAY(日历日)=WeekStartValue,CONCATENATE(\"第 \",WEEKNUM(日历日),\" 周/第 \",日历日-DATE(YEAR(日历日),1,0),\" 天\"),CONCATENATE(\"第 \",日历日-DATE(YEAR(日历日),1,0),\" 天\"))","v":"第 99 天"},{"$f":"IF(WEEKDAY(日历日)=WeekStartValue,CONCATENATE(\"第 \",WEEKNUM(日历日),\" 周/第 \",日历日-DATE(YEAR(日历日),1,0),\" 天\"),CONCATENATE(\"第 \",日历日-DATE(YEAR(日历日),1,0),\" 天\"))","v":"第 100 天"},{"$f":"IF(WEEKDAY(日历日)=WeekStartValue,CONCATENATE(\"第 \",WEEKNUM(日历日),\" 周/第 \",日历日-DATE(YEAR(日历日),1,0),\" 天\"),CONCATENATE(\"第 \",日历日-DATE(YEAR(日历日),1,0),\" 天\"))","v":"第 101 天"},{"$f":"IF(WEEKDAY(日历日)=WeekStartValue,CONCATENATE(\"第 \",WEEKNUM(日历日),\" 周/第 \",日历日-DATE(YEAR(日历日),1,0),\" 天\"),CONCATENATE(\"第 \",日历日-DATE(YEAR(日历日),1,0),\" 天\"))","v":"第 102 天"},{"$f":"IF(WEEKDAY(日历日)=WeekStartValue,CONCATENATE(\"第 \",WEEKNUM(日历日),\" 周/第 \",日历日-DATE(YEAR(日历日),1,0),\" 天\"),CONCATENATE(\"第 \",日历日-DATE(YEAR(日历日),1,0),\" 天\"))","v":"第 103 天"},{"$f":"IF(WEEKDAY(日历日)=WeekStartValue,CONCATENATE(\"第 \",WEEKNUM(日历日),\" 周/第 \",日历日-DATE(YEAR(日历日),1,0),\" 天\"),CONCATENATE(\"第 \",日历日-DATE(YEAR(日历日),1,0),\" 天\"))","v":"第 104 天"}]
[]
[null,null,{"$f":"星期日期和周+DATE(日历年,4,1)-WEEKDAY(DATE(日历年,4,1),(周开始日期=\"一\")+1)+15","v":"2018-04-15"},"2018-04-16","2018-04-17","2018-04-18","2018-04-19","2018-04-20","2018-04-21"]
[null,null,{"$f":"IF(WEEKDAY(日历日)=WeekStartValue,CONCATENATE(\"第 \",WEEKNUM(日历日),\" 周/第 \",日历日-DATE(YEAR(日历日),1,0),\" 天\"),CONCATENATE(\"第 \",日历日-DATE(YEAR(日历日),1,0),\" 天\"))","v":"第 16 周/第 105 天"},{"$f":"IF(WEEKDAY(日历日)=WeekStartValue,CONCATENATE(\"第 \",WEEKNUM(日历日),\" 周/第 \",日历日-DATE(YEAR(日历日),1,0),\" 天\"),CONCATENATE(\"第 \",日历日-DATE(YEAR(日历日),1,0),\" 天\"))","v":"第 106 天"},{"$f":"IF(WEEKDAY(日历日)=WeekStartValue,CONCATENATE(\"第 \",WEEKNUM(日历日),\" 周/第 \",日历日-DATE(YEAR(日历日),1,0),\" 天\"),CONCATENATE(\"第 \",日历日-DATE(YEAR(日历日),1,0),\" 天\"))","v":"第 107 天"},{"$f":"IF(WEEKDAY(日历日)=WeekStartValue,CONCATENATE(\"第 \",WEEKNUM(日历日),\" 周/第 \",日历日-DATE(YEAR(日历日),1,0),\" 天\"),CONCATENATE(\"第 \",日历日-DATE(YEAR(日历日),1,0),\" 天\"))","v":"第 108 天"},{"$f":"IF(WEEKDAY(日历日)=WeekStartValue,CONCATENATE(\"第 \",WEEKNUM(日历日),\" 周/第 \",日历日-DATE(YEAR(日历日),1,0),\" 天\"),CONCATENATE(\"第 \",日历日-DATE(YEAR(日历日),1,0),\" 天\"))","v":"第 109 天"},{"$f":"IF(WEEKDAY(日历日)=WeekStartValue,CONCATENATE(\"第 \",WEEKNUM(日历日),\" 周/第 \",日历日-DATE(YEAR(日历日),1,0),\" 天\"),CONCATENATE(\"第 \",日历日-DATE(YEAR(日历日),1,0),\" 天\"))","v":"第 110 天"},{"$f":"IF(WEEKDAY(日历日)=WeekStartValue,CONCATENATE(\"第 \",WEEKNUM(日历日),\" 周/第 \",日历日-DATE(YEAR(日历日),1,0),\" 天\"),CONCATENATE(\"第 \",日历日-DATE(YEAR(日历日),1,0),\" 天\"))","v":"第 111 天"}]
[]
[null,null,{"$f":"星期日期和周+DATE(日历年,4,1)-WEEKDAY(DATE(日历年,4,1),(周开始日期=\"一\")+1)+22","v":"2018-04-22"},"2018-04-23","2018-04-24","2018-04-25","2018-04-26","2018-04-27","2018-04-28"]
[null,null,{"$f":"IF(WEEKDAY(日历日)=WeekStartValue,CONCATENATE(\"第 \",WEEKNUM(日历日),\" 周/第 \",日历日-DATE(YEAR(日历日),1,0),\" 天\"),CONCATENATE(\"第 \",日历日-DATE(YEAR(日历日),1,0),\" 天\"))","v":"第 17 周/第 112 天"},{"$f":"IF(WEEKDAY(日历日)=WeekStartValue,CONCATENATE(\"第 \",WEEKNUM(日历日),\" 周/第 \",日历日-DATE(YEAR(日历日),1,0),\" 天\"),CONCATENATE(\"第 \",日历日-DATE(YEAR(日历日),1,0),\" 天\"))","v":"第 113 天"},{"$f":"IF(WEEKDAY(日历日)=WeekStartValue,CONCATENATE(\"第 \",WEEKNUM(日历日),\" 周/第 \",日历日-DATE(YEAR(日历日),1,0),\" 天\"),CONCATENATE(\"第 \",日历日-DATE(YEAR(日历日),1,0),\" 天\"))","v":"第 114 天"},{"$f":"IF(WEEKDAY(日历日)=WeekStartValue,CONCATENATE(\"第 \",WEEKNUM(日历日),\" 周/第 \",日历日-DATE(YEAR(日历日),1,0),\" 天\"),CONCATENATE(\"第 \",日历日-DATE(YEAR(日历日),1,0),\" 天\"))","v":"第 115 天"},{"$f":"IF(WEEKDAY(日历日)=WeekStartValue,CONCATENATE(\"第 \",WEEKNUM(日历日),\" 周/第 \",日历日-DATE(YEAR(日历日),1,0),\" 天\"),CONCATENATE(\"第 \",日历日-DATE(YEAR(日历日),1,0),\" 天\"))","v":"第 116 天"},{"$f":"IF(WEEKDAY(日历日)=WeekStartValue,CONCATENATE(\"第 \",WEEKNUM(日历日),\" 周/第 \",日历日-DATE(YEAR(日历日),1,0),\" 天\"),CONCATENATE(\"第 \",日历日-DATE(YEAR(日历日),1,0),\" 天\"))","v":"第 117 天"},{"$f":"IF(WEEKDAY(日历日)=WeekStartValue,CONCATENATE(\"第 \",WEEKNUM(日历日),\" 周/第 \",日历日-DATE(YEAR(日历日),1,0),\" 天\"),CONCATENATE(\"第 \",日历日-DATE(YEAR(日历日),1,0),\" 天\"))","v":"第 118 天"}]
[]
[null,null,{"$f":"星期日期和周+DATE(日历年,4,1)-WEEKDAY(DATE(日历年,4,1),(周开始日期=\"一\")+1)+29","v":"2018-04-29"},"2018-04-30","2018-05-01","2018-05-02","2018-05-03","2018-05-04","2018-05-05"]
[null,null,{"$f":"IF(WEEKDAY(日历日)=WeekStartValue,CONCATENATE(\"第 \",WEEKNUM(日历日),\" 周/第 \",日历日-DATE(YEAR(日历日),1,0),\" 天\"),CONCATENATE(\"第 \",日历日-DATE(YEAR(日历日),1,0),\" 天\"))","v":"第 18 周/第 119 天"},{"$f":"IF(WEEKDAY(日历日)=WeekStartValue,CONCATENATE(\"第 \",WEEKNUM(日历日),\" 周/第 \",日历日-DATE(YEAR(日历日),1,0),\" 天\"),CONCATENATE(\"第 \",日历日-DATE(YEAR(日历日),1,0),\" 天\"))","v":"第 120 天"},{"$f":"IF(WEEKDAY(日历日)=WeekStartValue,CONCATENATE(\"第 \",WEEKNUM(日历日),\" 周/第 \",日历日-DATE(YEAR(日历日),1,0),\" 天\"),CONCATENATE(\"第 \",日历日-DATE(YEAR(日历日),1,0),\" 天\"))","v":"第 121 天"},{"$f":"IF(WEEKDAY(日历日)=WeekStartValue,CONCATENATE(\"第 \",WEEKNUM(日历日),\" 周/第 \",日历日-DATE(YEAR(日历日),1,0),\" 天\"),CONCATENATE(\"第 \",日历日-DATE(YEAR(日历日),1,0),\" 天\"))","v":"第 122 天"},{"$f":"IF(WEEKDAY(日历日)=WeekStartValue,CONCATENATE(\"第 \",WEEKNUM(日历日),\" 周/第 \",日历日-DATE(YEAR(日历日),1,0),\" 天\"),CONCATENATE(\"第 \",日历日-DATE(YEAR(日历日),1,0),\" 天\"))","v":"第 123 天"},{"$f":"IF(WEEKDAY(日历日)=WeekStartValue,CONCATENATE(\"第 \",WEEKNUM(日历日),\" 周/第 \",日历日-DATE(YEAR(日历日),1,0),\" 天\"),CONCATENATE(\"第 \",日历日-DATE(YEAR(日历日),1,0),\" 天\"))","v":"第 124 天"},{"$f":"IF(WEEKDAY(日历日)=WeekStartValue,CONCATENATE(\"第 \",WEEKNUM(日历日),\" 周/第 \",日历日-DATE(YEAR(日历日),1,0),\" 天\"),CONCATENATE(\"第 \",日历日-DATE(YEAR(日历日),1,0),\" 天\"))","v":"第 125 天"}]
[{"$nulls":4},"备注"]
[]
[null,null,{"$f":"星期日期和周+DATE(日历年,4,1)-WEEKDAY(DATE(日历年,4,1),(周开始日期=\"一\")+1)+36","v":"2018-05-06"},"2018-05-07"]
[null,null,{"$f":"IF(WEEKDAY(日历日)=WeekStartValue,CONCATENATE(\"第 \",WEEKNUM(日历日),\" 周/第 \",日历日-DATE(YEAR(日历日),1,0),\" 天\"),CONCATENATE(\"第 \",日历日-DATE(YEAR(日历日),1,0),\" 天\"))","v":"第 19 周/第 126 天"},{"$f":"IF(WEEKDAY(日历日)=WeekStartValue,CONCATENATE(\"第 \",WEEKNUM(日历日),\" 周/第 \",日历日-DATE(YEAR(日历日),1,0),\" 天\"),CONCATENATE(\"第 \",日历日-DATE(YEAR(日历日),1,0),\" 天\"))","v":"第 127 天"}]

{"sheet":"5月","index":4,"n_rows":20,"n_cols":9,"rows_kept":20,"merged":[[16,2,17,2],[17,4,19,8]]}
[null,"5 月",{"$f":"UPPER(TEXT(周开始日期,\"ddd\"))","v":"日"},{"$f":"UPPER(TEXT(D3,\"aaa\"))","v":"一"},"二","三","四","五","六"]
[null,{"$f":"日历年","v":2018}]
[null,null,{"$f":"星期日期和周+DATE(日历年,5,1)-WEEKDAY(DATE(日历年,5,1),(周开始日期=\"一\")+1)+1","v":"2018-04-29"},"2018-04-30","2018-05-01","2018-05-02","2018-05-03","2018-05-04","2018-05-05"]
[null,null,{"$f":"IF(DAY(日历日)=1,CONCATENATE(\"第 \",WEEKNUM(日历日),\" 周/第 \",日历日-DATE(YEAR(日历日),1,0),\" 天\"),CONCATENATE(\"第 \",日历日-DATE(YEAR(日历日),1,0),\" 天\"))","v":"第 119 天"},{"$f":"IF(DAY(日历日)=1,CONCATENATE(\"第 \",WEEKNUM(日历日),\" 周/第 \",日历日-DATE(YEAR(日历日),1,0),\" 天\"),CONCATENATE(\"第 \",日历日-DATE(YEAR(日历日),1,0),\" 天\"))","v":"第 120 天"},{"$f":"IF(DAY(日历日)=1,CONCATENATE(\"第 \",WEEKNUM(日历日),\" 周/第 \",日历日-DATE(YEAR(日历日),1,0),\" 天\"),CONCATENATE(\"第 \",日历日-DATE(YEAR(日历日),1,0),\" 天\"))","v":"第 18 周/第 121 天"},{"$f":"IF(DAY(日历日)=1,CONCATENATE(\"第 \",WEEKNUM(日历日),\" 周/第 \",日历日-DATE(YEAR(日历日),1,0),\" 天\"),CONCATENATE(\"第 \",日历日-DATE(YEAR(日历日),1,0),\" 天\"))","v":"第 122 天"},{"$f":"IF(DAY(日历日)=1,CONCATENATE(\"第 \",WEEKNUM(日历日),\" 周/第 \",日历日-DATE(YEAR(日历日),1,0),\" 天\"),CONCATENATE(\"第 \",日历日-DATE(YEAR(日历日),1,0),\" 天\"))","v":"第 123 天"},{"$f":"IF(DAY(日历日)=1,CONCATENATE(\"第 \",WEEKNUM(日历日),\" 周/第 \",日历日-DATE(YEAR(日历日),1,0),\" 天\"),CONCATENATE(\"第 \",日历日-DATE(YEAR(日历日),1,0),\" 天\"))","v":"第 124 天"},{"$f":"IF(DAY(日历日)=1,CONCATENATE(\"第 \",WEEKNUM(日历日),\" 周/第 \",日历日-DATE(YEAR(日历日),1,0),\" 天\"),CONCATENATE(\"第 \",日历日-DATE(YEAR(日历日),1,0),\" 天\"))","v":"第 125 天"}]
[]
[null,null,{"$f":"星期日期和周+DATE(日历年,5,1)-WEEKDAY(DATE(日历年,5,1),(周开始日期=\"一\")+1)+8","v":"2018-05-06"},"2018-05-07","2018-05-08","2018-05-09","2018-05-10","2018-05-11","2018-05-12"]
[null,null,{"$f":"IF(WEEKDAY(日历日)=WeekStartValue,CONCATENATE(\"第 \",WEEKNUM(日历日),\" 周/第 \",日历日-DATE(YEAR(日历日),1,0),\" 天\"),CONCATENATE(\"第 \",日历日-DATE(YEAR(日历日),1,0),\" 天\"))","v":"第 19 周/第 126 天"},{"$f":"IF(WEEKDAY(日历日)=WeekStartValue,CONCATENATE(\"第 \",WEEKNUM(日历日),\" 周/第 \",日历日-DATE(YEAR(日历日),1,0),\" 天\"),CONCATENATE(\"第 \",日历日-DATE(YEAR(日历日),1,0),\" 天\"))","v":"第 127 天"},{"$f":"IF(WEEKDAY(日历日)=WeekStartValue,CONCATENATE(\"第 \",WEEKNUM(日历日),\" 周/第 \",日历日-DATE(YEAR(日历日),1,0),\" 天\"),CONCATENATE(\"第 \",日历日-DATE(YEAR(日历日),1,0),\" 天\"))","v":"第 128 天"},{"$f":"IF(WEEKDAY(日历日)=WeekStartValue,CONCATENATE(\"第 \",WEEKNUM(日历日),\" 周/第 \",日历日-DATE(YEAR(日历日),1,0),\" 天\"),CONCATENATE(\"第 \",日历日-DATE(YEAR(日历日),1,0),\" 天\"))","v":"第 129 天"},{"$f":"IF(WEEKDAY(日历日)=WeekStartValue,CONCATENATE(\"第 \",WEEKNUM(日历日),\" 周/第 \",日历日-DATE(YEAR(日历日),1,0),\" 天\"),CONCATENATE(\"第 \",日历日-DATE(YEAR(日历日),1,0),\" 天\"))","v":"第 130 天"},{"$f":"IF(WEEKDAY(日历日)=WeekStartValue,CONCATENATE(\"第 \",WEEKNUM(日历日),\" 周/第 \",日历日-DATE(YEAR(日历日),1,0),\" 天\"),CONCATENATE(\"第 \",日历日-DATE(YEAR(日历日),1,0),\" 天\"))","v":"第 131 天"},{"$f":"IF(WEEKDAY(日历日)=WeekStartValue,CONCATENATE(\"第 \",WEEKNUM(日历日),\" 周/第 \",日历日-DATE(YEAR(日历日),1,0),\" 天\"),CONCATENATE(\"第 \",日历日-DATE(YEAR(日历日),1,0),\" 天\"))","v":"第 132 天"}]
[]
[null,null,{"$f":"星期日期和周+DATE(日历年,5,1)-WEEKDAY(DATE(日历年,5,1),(周开始日期=\"一\")+1)+15","v":"2018-05-13"},"2018-05-14","2018-05-15","2018-05-16","2018-05-17","2018-05-18","2018-05-19"]
[null,null,{"$f":"IF(WEEKDAY(日历日)=WeekStartValue,CONCATENATE(\"第 \",WEEKNUM(日历日),\" 周/第 \",日历日-DATE(YEAR(日历日),1,0),\" 天\"),CONCATENATE(\"第 \",日历日-DATE(YEAR(日历日),1,0),\" 天\"))","v":"第 20 周/第 133 天"},{"$f":"IF(WEEKDAY(日历日)=WeekStartValue,CONCATENATE(\"第 \",WEEKNUM(日历日),\" 周/第 \",日历日-DATE(YEAR(日历日),1,0),\" 天\"),CONCATENATE(\"第 \",日历日-DATE(YEAR(日历日),1,0),\" 天\"))","v":"第 134 天"},{"$f":"IF(WEEKDAY(日历日)=WeekStartValue,CONCATENATE(\"第 \",WEEKNUM(日历日),\" 周/第 \",日历日-DATE(YEAR(日历日),1,0),\" 天\"),CONCATENATE(\"第 \",日历日-DATE(YEAR(日历日),1,0),\" 天\"))","v":"第 135 天"},{"$f":"IF(WEEKDAY(日历日)=WeekStartValue,CONCATENATE(\"第 \",WEEKNUM(日历日),\" 周/第 \",日历日-DATE(YEAR(日历日),1,0),\" 天\"),CONCATENATE(\"第 \",日历日-DATE(YEAR(日历日),1,0),\" 天\"))","v":"第 136 天"},{"$f":"IF(WEEKDAY(日历日)=WeekStartValue,CONCATENATE(\"第 \",WEEKNUM(日历日),\" 周/第 \",日历日-DATE(YEAR(日历日),1,0),\" 天\"),CONCATENATE(\"第 \",日历日-DATE(YEAR(日历日),1,0),\" 天\"))","v":"第 137 天"},{"$f":"IF(WEEKDAY(日历日)=WeekStartValue,CONCATENATE(\"第 \",WEEKNUM(日历日),\" 周/第 \",日历日-DATE(YEAR(日历日),1,0),\" 天\"),CONCATENATE(\"第 \",日历日-DATE(YEAR(日历日),1,0),\" 天\"))","v":"第 138 天"},{"$f":"IF(WEEKDAY(日历日)=WeekStartValue,CONCATENATE(\"第 \",WEEKNUM(日历日),\" 周/第 \",日历日-DATE(YEAR(日历日),1,0),\" 天\"),CONCATENATE(\"第 \",日历日-DATE(YEAR(日历日),1,0),\" 天\"))","v":"第 139 天"}]
[]
[null,null,{"$f":"星期日期和周+DATE(日历年,5,1)-WEEKDAY(DATE(日历年,5,1),(周开始日期=\"一\")+1)+22","v":"2018-05-20"},"2018-05-21","2018-05-22","2018-05-23","2018-05-24","2018-05-25","2018-05-26"]
[null,null,{"$f":"IF(WEEKDAY(日历日)=WeekStartValue,CONCATENATE(\"第 \",WEEKNUM(日历日),\" 周/第 \",日历日-DATE(YEAR(日历日),1,0),\" 天\"),CONCATENATE(\"第 \",日历日-DATE(YEAR(日历日),1,0),\" 天\"))","v":"第 21 周/第 140 天"},{"$f":"IF(WEEKDAY(日历日)=WeekStartValue,CONCATENATE(\"第 \",WEEKNUM(日历日),\" 周/第 \",日历日-DATE(YEAR(日历日),1,0),\" 天\"),CONCATENATE(\"第 \",日历日-DATE(YEAR(日历日),1,0),\" 天\"))","v":"第 141 天"},{"$f":"IF(WEEKDAY(日历日)=WeekStartValue,CONCATENATE(\"第 \",WEEKNUM(日历日),\" 周/第 \",日历日-DATE(YEAR(日历日),1,0),\" 天\"),CONCATENATE(\"第 \",日历日-DATE(YEAR(日历日),1,0),\" 天\"))","v":"第 142 天"},{"$f":"IF(WEEKDAY(日历日)=WeekStartValue,CONCATENATE(\"第 \",WEEKNUM(日历日),\" 周/第 \",日历日-DATE(YEAR(日历日),1,0),\" 天\"),CONCATENATE(\"第 \",日历日-DATE(YEAR(日历日),1,0),\" 天\"))","v":"第 143 天"},{"$f":"IF(WEEKDAY(日历日)=WeekStartValue,CONCATENATE(\"第 \",WEEKNUM(日历日),\" 周/第 \",日历日-DATE(YEAR(日历日),1,0),\" 天\"),CONCATENATE(\"第 \",日历日-DATE(YEAR(日历日),1,0),\" 天\"))","v":"第 144 天"},{"$f":"IF(WEEKDAY(日历日)=WeekStartValue,CONCATENATE(\"第 \",WEEKNUM(日历日),\" 周/第 \",日历日-DATE(YEAR(日历日),1,0),\" 天\"),CONCATENATE(\"第 \",日历日-DATE(YEAR(日历日),1,0),\" 天\"))","v":"第 145 天"},{"$f":"IF(WEEKDAY(日历日)=WeekStartValue,CONCATENATE(\"第 \",WEEKNUM(日历日),\" 周/第 \",日历日-DATE(YEAR(日历日),1,0),\" 天\"),CONCATENATE(\"第 \",日历日-DATE(YEAR(日历日),1,0),\" 天\"))","v":"第 146 天"}]
[]
[null,null,{"$f":"星期日期和周+DATE(日历年,5,1)-WEEKDAY(DATE(日历年,5,1),(周开始日期=\"一\")+1)+29","v":"2018-05-27"},"2018-05-28","2018-05-29","2018-05-30","2018-05-31","2018-06-01","2018-06-02"]
[null,null,{"$f":"IF(WEEKDAY(日历日)=WeekStartValue,CONCATENATE(\"第 \",WEEKNUM(日历日),\" 周/第 \",日历日-DATE(YEAR(日历日),1,0),\" 天\"),CONCATENATE(\"第 \",日历日-DATE(YEAR(日历日),1,0),\" 天\"))","v":"第 22 周/第 147 天"},{"$f":"IF(WEEKDAY(日历日)=WeekStartValue,CONCATENATE(\"第 \",WEEKNUM(日历日),\" 周/第 \",日历日-DATE(YEAR(日历日),1,0),\" 天\"),CONCATENATE(\"第 \",日历日-DATE(YEAR(日历日),1,0),\" 天\"))","v":"第 148 天"},{"$f":"IF(WEEKDAY(日历日)=WeekStartValue,CONCATENATE(\"第 \",WEEKNUM(日历日),\" 周/第 \",日历日-DATE(YEAR(日历日),1,0),\" 天\"),CONCATENATE(\"第 \",日历日-DATE(YEAR(日历日),1,0),\" 天\"))","v":"第 149 天"},{"$f":"IF(WEEKDAY(日历日)=WeekStartValue,CONCATENATE(\"第 \",WEEKNUM(日历日),\" 周/第 \",日历日-DATE(YEAR(日历日),1,0),\" 天\"),CONCATENATE(\"第 \",日历日-DATE(YEAR(日历日),1,0),\" 天\"))","v":"第 150 天"},{"$f":"IF(WEEKDAY(日历日)=WeekStartValue,CONCATENATE(\"第 \",WEEKNUM(日历日),\" 周/第 \",日历日-DATE(YEAR(日历日),1,0),\" 天\"),CONCATENATE(\"第 \",日历日-DATE(YEAR(日历日),1,0),\" 天\"))","v":"第 151 天"},{"$f":"IF(WEEKDAY(日历日)=WeekStartValue,CONCATENATE(\"第 \",WEEKNUM(日历日),\" 周/第 \",日历日-DATE(YEAR(日历日),1,0),\" 天\"),CONCATENATE(\"第 \",日历日-DATE(YEAR(日历日),1,0),\" 天\"))","v":"第 152 天"},{"$f":"IF(WEEKDAY(日历日)=WeekStartValue,CONCATENATE(\"第 \",WEEKNUM(日历日),\" 周/第 \",日历日-DATE(YEAR(日历日),1,0),\" 天\"),CONCATENATE(\"第 \",日历日-DATE(YEAR(日历日),1,0),\" 天\"))","v":"第 153 天"}]
[{"$nulls":4},"备注"]
[]
[null,null,{"$f":"星期日期和周+DATE(日历年,5,1)-WEEKDAY(DATE(日历年,5,1),(周开始日期=\"一\")+1)+36","v":"2018-06-03"},"2018-06-04"]
[null,null,{"$f":"IF(WEEKDAY(日历日)=WeekStartValue,CONCATENATE(\"第 \",WEEKNUM(日历日),\" 周/第 \",日历日-DATE(YEAR(日历日),1,0),\" 天\"),CONCATENATE(\"第 \",日历日-DATE(YEAR(日历日),1,0),\" 天\"))","v":"第 23 周/第 154 天"},{"$f":"IF(WEEKDAY(日历日)=WeekStartValue,CONCATENATE(\"第 \",WEEKNUM(日历日),\" 周/第 \",日历日-DATE(YEAR(日历日),1,0),\" 天\"),CONCATENATE(\"第 \",日历日-DATE(YEAR(日历日),1,0),\" 天\"))","v":"第 155 天"}]

{"sheet":"6月","index":5,"n_rows":20,"n_cols":9,"rows_kept":20,"merged":[[16,2,17,2],[17,4,19,8]]}
[null,"6 月",{"$f":"UPPER(TEXT(周开始日期,\"ddd\"))","v":"日"},{"$f":"UPPER(TEXT(D3,\"aaa\"))","v":"一"},"二","三","四","五","六"]
[null,{"$f":"日历年","v":2018}]
[null,null,{"$f":"星期日期和周+DATE(日历年,6,1)-WEEKDAY(DATE(日历年,6,1),(周开始日期=\"一\")+1)+1","v":"2018-05-27"},"2018-05-28","2018-05-29","2018-05-30","2018-05-31","2018-06-01","2018-06-02"]
[null,null,{"$f":"IF(DAY(日历日)=1,CONCATENATE(\"第 \",WEEKNUM(日历日),\" 周/第 \",日历日-DATE(YEAR(日历日),1,0),\" 天\"),CONCATENATE(\"第 \",日历日-DATE(YEAR(日历日),1,0),\" 天\"))","v":"第 147 天"},{"$f":"IF(DAY(日历日)=1,CONCATENATE(\"第 \",WEEKNUM(日历日),\" 周/第 \",日历日-DATE(YEAR(日历日),1,0),\" 天\"),CONCATENATE(\"第 \",日历日-DATE(YEAR(日历日),1,0),\" 天\"))","v":"第 148 天"},{"$f":"IF(DAY(日历日)=1,CONCATENATE(\"第 \",WEEKNUM(日历日),\" 周/第 \",日历日-DATE(YEAR(日历日),1,0),\" 天\"),CONCATENATE(\"第 \",日历日-DATE(YEAR(日历日),1,0),\" 天\"))","v":"第 149 天"},{"$f":"IF(DAY(日历日)=1,CONCATENATE(\"第 \",WEEKNUM(日历日),\" 周/第 \",日历日-DATE(YEAR(日历日),1,0),\" 天\"),CONCATENATE(\"第 \",日历日-DATE(YEAR(日历日),1,0),\" 天\"))","v":"第 150 天"},{"$f":"IF(DAY(日历日)=1,CONCATENATE(\"第 \",WEEKNUM(日历日),\" 周/第 \",日历日-DATE(YEAR(日历日),1,0),\" 天\"),CONCATENATE(\"第 \",日历日-DATE(YEAR(日历日),1,0),\" 天\"))","v":"第 151 天"},{"$f":"IF(DAY(日历日)=1,CONCATENATE(\"第 \",WEEKNUM(日历日),\" 周/第 \",日历日-DATE(YEAR(日历日),1,0),\" 天\"),CONCATENATE(\"第 \",日历日-DATE(YEAR(日历日),1,0),\" 天\"))","v":"第 22 周/第 152 天"},{"$f":"IF(DAY(日历日)=1,CONCATENATE(\"第 \",WEEKNUM(日历日),\" 周/第 \",日历日-DATE(YEAR(日历日),1,0),\" 天\"),CONCATENATE(\"第 \",日历日-DATE(YEAR(日历日),1,0),\" 天\"))","v":"第 153 天"}]
[]
[null,null,{"$f":"星期日期和周+DATE(日历年,6,1)-WEEKDAY(DATE(日历年,6,1),(周开始日期=\"一\")+1)+8","v":"2018-06-03"},"2018-06-04","2018-06-05","2018-06-06","2018-06-07","2018-06-08","2018-06-09"]
[null,null,{"$f":"IF(WEEKDAY(日历日)=WeekStartValue,CONCATENATE(\"第 \",WEEKNUM(日历日),\" 周/第 \",日历日-DATE(YEAR(日历日),1,0),\" 天\"),CONCATENATE(\"第 \",日历日-DATE(YEAR(日历日),1,0),\" 天\"))","v":"第 23 周/第 154 天"},{"$f":"IF(WEEKDAY(日历日)=WeekStartValue,CONCATENATE(\"第 \",WEEKNUM(日历日),\" 周/第 \",日历日-DATE(YEAR(日历日),1,0),\" 天\"),CONCATENATE(\"第 \",日历日-DATE(YEAR(日历日),1,0),\" 天\"))","v":"第 155 天"},{"$f":"IF(WEEKDAY(日历日)=WeekStartValue,CONCATENATE(\"第 \",WEEKNUM(日历日),\" 周/第 \",日历日-DATE(YEAR(日历日),1,0),\" 天\"),CONCATENATE(\"第 \",日历日-DATE(YEAR(日历日),1,0),\" 天\"))","v":"第 156 天"},{"$f":"IF(WEEKDAY(日历日)=WeekStartValue,CONCATENATE(\"第 \",WEEKNUM(日历日),\" 周/第 \",日历日-DATE(YEAR(日历日),1,0),\" 天\"),CONCATENATE(\"第 \",日历日-DATE(YEAR(日历日),1,0),\" 天\"))","v":"第 157 天"},{"$f":"IF(WEEKDAY(日历日)=WeekStartValue,CONCATENATE(\"第 \",WEEKNUM(日历日),\" 周/第 \",日历日-DATE(YEAR(日历日),1,0),\" 天\"),CONCATENATE(\"第 \",日历日-DATE(YEAR(日历日),1,0),\" 天\"))","v":"第 158 天"},{"$f":"IF(WEEKDAY(日历日)=WeekStartValue,CONCATENATE(\"第 \",WEEKNUM(日历日),\" 周/第 \",日历日-DATE(YEAR(日历日),1,0),\" 天\"),CONCATENATE(\"第 \",日历日-DATE(YEAR(日历日),1,0),\" 天\"))","v":"第 159 天"},{"$f":"IF(WEEKDAY(日历日)=WeekStartValue,CONCATENATE(\"第 \",WEEKNUM(日历日),\" 周/第 \",日历日-DATE(YEAR(日历日),1,0),\" 天\"),CONCATENATE(\"第 \",日历日-DATE(YEAR(日历日),1,0),\" 天\"))","v":"第 160 天"}]
[]
[null,null,{"$f":"星期日期和周+DATE(日历年,6,1)-WEEKDAY(DATE(日历年,6,1),(周开始日期=\"一\")+1)+15","v":"2018-06-10"},"2018-06-11","2018-06-12","2018-06-13","2018-06-14","2018-06-15","2018-06-16"]
[null,null,{"$f":"IF(WEEKDAY(日历日)=WeekStartValue,CONCATENATE(\"第 \",WEEKNUM(日历日),\" 周/第 \",日历日-DATE(YEAR(日历日),1,0),\" 天\"),CONCATENATE(\"第 \",日历日-DATE(YEAR(日历日),1,0),\" 天\"))","v":"第 24 周/第 161 天"},{"$f":"IF(WEEKDAY(日历日)=WeekStartValue,CONCATENATE(\"第 \",WEEKNUM(日历日),\" 周/第 \",日历日-DATE(YEAR(日历日),1,0),\" 天\"),CONCATENATE(\"第 \",日历日-DATE(YEAR(日历日),1,0),\" 天\"))","v":"第 162 天"},{"$f":"IF(WEEKDAY(日历日)=WeekStartValue,CONCATENATE(\"第 \",WEEKNUM(日历日),\" 周/第 \",日历日-DATE(YEAR(日历日),1,0),\" 天\"),CONCATENATE(\"第 \",日历日-DATE(YEAR(日历日),1,0),\" 天\"))","v":"第 163 天"},{"$f":"IF(WEEKDAY(日历日)=WeekStartValue,CONCATENATE(\"第 \",WEEKNUM(日历日),\" 周/第 \",日历日-DATE(YEAR(日历日),1,0),\" 天\"),CONCATENATE(\"第 \",日历日-DATE(YEAR(日历日),1,0),\" 天\"))","v":"第 164 天"},{"$f":"IF(WEEKDAY(日历日)=WeekStartValue,CONCATENATE(\"第 \",WEEKNUM(日历日),\" 周/第 \",日历日-DATE(YEAR(日历日),1,0),\" 天\"),CONCATENATE(\"第 \",日历日-DATE(YEAR(日历日),1,0),\" 天\"))","v":"第 165 天"},{"$f":"IF(WEEKDAY(日历日)=WeekStartValue,CONCATENATE(\"第 \",WEEKNUM(日历日),\" 周/第 \",日历日-DATE(YEAR(日历日),1,0),\" 天\"),CONCATENATE(\"第 \",日历日-DATE(YEAR(日历日),1,0),\" 天\"))","v":"第 166 天"},{"$f":"IF(WEEKDAY(日历日)=WeekStartValue,CONCATENATE(\"第 \",WEEKNUM(日历日),\" 周/第 \",日历日-DATE(YEAR(日历日),1,0),\" 天\"),CONCATENATE(\"第 \",日历日-DATE(YEAR(日历日),1,0),\" 天\"))","v":"第 167 天"}]
[]
[null,null,{"$f":"星期日期和周+DATE(日历年,6,1)-WEEKDAY(DATE(日历年,6,1),(周开始日期=\"一\")+1)+22","v":"2018-06-17"},"2018-06-18","2018-06-19","2018-06-20","2018-06-21","2018-06-22","2018-06-23"]
[null,null,{"$f":"IF(WEEKDAY(日历日)=WeekStartValue,CONCATENATE(\"第 \",WEEKNUM(日历日),\" 周/第 \",日历日-DATE(YEAR(日历日),1,0),\" 天\"),CONCATENATE(\"第 \",日历日-DATE(YEAR(日历日),1,0),\" 天\"))","v":"第 25 周/第 168 天"},{"$f":"IF(WEEKDAY(日历日)=WeekStartValue,CONCATENATE(\"第 \",WEEKNUM(日历日),\" 周/第 \",日历日-DATE(YEAR(日历日),1,0),\" 天\"),CONCATENATE(\"第 \",日历日-DATE(YEAR(日历日),1,0),\" 天\"))","v":"第 169 天"},{"$f":"IF(WEEKDAY(日历日)=WeekStartValue,CONCATENATE(\"第 \",WEEKNUM(日历日),\" 周/第 \",日历日-DATE(YEAR(日历日),1,0),\" 天\"),CONCATENATE(\"第 \",日历日-DATE(YEAR(日历日),1,0),\" 天\"))","v":"第 170 天"},{"$f":"IF(WEEKDAY(日历日)=WeekStartValue,CONCATENATE(\"第 \",WEEKNUM(日历日),\" 周/第 \",日历日-DATE(YEAR(日历日),1,0),\" 天\"),CONCATENATE(\"第 \",日历日-DATE(YEAR(日历日),1,0),\" 天\"))","v":"第 171 天"},{"$f":"IF(WEEKDAY(日历日)=WeekStartValue,CONCATENATE(\"第 \",WEEKNUM(日历日),\" 周/第 \",日历日-DATE(YEAR(日历日),1,0),\" 天\"),CONCATENATE(\"第 \",日历日-DATE(YEAR(日历日),1,0),\" 天\"))","v":"第 172 天"},{"$f":"IF(WEEKDAY(日历日)=WeekStartValue,CONCATENATE(\"第 \",WEEKNUM(日历日),\" 周/第 \",日历日-DATE(YEAR(日历日),1,0),\" 天\"),CONCATENATE(\"第 \",日历日-DATE(YEAR(日历日),1,0),\" 天\"))","v":"第 173 天"},{"$f":"IF(WEEKDAY(日历日)=WeekStartValue,CONCATENATE(\"第 \",WEEKNUM(日历日),\" 周/第 \",日历日-DATE(YEAR(日历日),1,0),\" 天\"),CONCATENATE(\"第 \",日历日-DATE(YEAR(日历日),1,0),\" 天\"))","v":"第 174 天"}]
[]
[null,null,{"$f":"星期日期和周+DATE(日历年,6,1)-WEEKDAY(DATE(日历年,6,1),(周开始日期=\"一\")+1)+29","v":"2018-06-24"},"2018-06-25","2018-06-26","2018-06-27","2018-06-28","2018-06-29","2018-06-30"]
[null,null,{"$f":"IF(WEEKDAY(日历日)=WeekStartValue,CONCATENATE(\"第 \",WEEKNUM(日历日),\" 周/第 \",日历日-DATE(YEAR(日历日),1,0),\" 天\"),CONCATENATE(\"第 \",日历日-DATE(YEAR(日历日),1,0),\" 天\"))","v":"第 26 周/第 175 天"},{"$f":"IF(WEEKDAY(日历日)=WeekStartValue,CONCATENATE(\"第 \",WEEKNUM(日历日),\" 周/第 \",日历日-DATE(YEAR(日历日),1,0),\" 天\"),CONCATENATE(\"第 \",日历日-DATE(YEAR(日历日),1,0),\" 天\"))","v":"第 176 天"},{"$f":"IF(WEEKDAY(日历日)=WeekStartValue,CONCATENATE(\"第 \",WEEKNUM(日历日),\" 周/第 \",日历日-DATE(YEAR(日历日),1,0),\" 天\"),CONCATENATE(\"第 \",日历日-DATE(YEAR(日历日),1,0),\" 天\"))","v":"第 177 天"},{"$f":"IF(WEEKDAY(日历日)=WeekStartValue,CONCATENATE(\"第 \",WEEKNUM(日历日),\" 周/第 \",日历日-DATE(YEAR(日历日),1,0),\" 天\"),CONCATENATE(\"第 \",日历日-DATE(YEAR(日历日),1,0),\" 天\"))","v":"第 178 天"},{"$f":"IF(WEEKDAY(日历日)=WeekStartValue,CONCATENATE(\"第 \",WEEKNUM(日历日),\" 周/第 \",日历日-DATE(YEAR(日历日),1,0),\" 天\"),CONCATENATE(\"第 \",日历日-DATE(YEAR(日历日),1,0),\" 天\"))","v":"第 179 天"},{"$f":"IF(WEEKDAY(日历日)=WeekStartValue,CONCATENATE(\"第 \",WEEKNUM(日历日),\" 周/第 \",日历日-DATE(YEAR(日历日),1,0),\" 天\"),CONCATENATE(\"第 \",日历日-DATE(YEAR(日历日),1,0),\" 天\"))","v":"第 180 天"},{"$f":"IF(WEEKDAY(日历日)=WeekStartValue,CONCATENATE(\"第 \",WEEKNUM(日历日),\" 周/第 \",日历日-DATE(YEAR(日历日),1,0),\" 天\"),CONCATENATE(\"第 \",日历日-DATE(YEAR(日历日),1,0),\" 天\"))","v":"第 181 天"}]
[{"$nulls":4},"备注"]
[]
[null,null,{"$f":"星期日期和周+DATE(日历年,6,1)-WEEKDAY(DATE(日历年,6,1),(周开始日期=\"一\")+1)+36","v":"2018-07-01"},"2018-07-02"]
[null,null,{"$f":"IF(WEEKDAY(日历日)=WeekStartValue,CONCATENATE(\"第 \",WEEKNUM(日历日),\" 周/第 \",日历日-DATE(YEAR(日历日),1,0),\" 天\"),CONCATENATE(\"第 \",日历日-DATE(YEAR(日历日),1,0),\" 天\"))","v":"第 27 周/第 182 天"},{"$f":"IF(WEEKDAY(日历日)=WeekStartValue,CONCATENATE(\"第 \",WEEKNUM(日历日),\" 周/第 \",日历日-DATE(YEAR(日历日),1,0),\" 天\"),CONCATENATE(\"第 \",日历日-DATE(YEAR(日历日),1,0),\" 天\"))","v":"第 183 天"}]

{"sheet":"7月","index":6,"n_rows":20,"n_cols":9,"rows_kept":20,"merged":[[16,2,17,2],[17,4,19,8]]}
[null,"7 月",{"$f":"UPPER(TEXT(周开始日期,\"ddd\"))","v":"日"},{"$f":"UPPER(TEXT(D3,\"aaa\"))","v":"一"},"二","三","四","五","六"]
[null,{"$f":"日历年","v":2018}]
[null,null,{"$f":"星期日期和周+DATE(日历年,7,1)-WEEKDAY(DATE(日历年,7,1),(周开始日期=\"一\")+1)+1","v":"2018-07-01"},"2018-07-02","2018-07-03","2018-07-04","2018-07-05","2018-07-06","2018-07-07"]
[null,null,{"$f":"IF(DAY(日历日)=1,CONCATENATE(\"第 \",WEEKNUM(日历日),\" 周/第 \",日历日-DATE(YEAR(日历日),1,0),\" 天\"),CONCATENATE(\"第 \",日历日-DATE(YEAR(日历日),1,0),\" 天\"))","v":"第 27 周/第 182 天"},{"$f":"IF(DAY(日历日)=1,CONCATENATE(\"第 \",WEEKNUM(日历日),\" 周/第 \",日历日-DATE(YEAR(日历日),1,0),\" 天\"),CONCATENATE(\"第 \",日历日-DATE(YEAR(日历日),1,0),\" 天\"))","v":"第 183 天"},{"$f":"IF(DAY(日历日)=1,CONCATENATE(\"第 \",WEEKNUM(日历日),\" 周/第 \",日历日-DATE(YEAR(日历日),1,0),\" 天\"),CONCATENATE(\"第 \",日历日-DATE(YEAR(日历日),1,0),\" 天\"))","v":"第 184 天"},{"$f":"IF(DAY(日历日)=1,CONCATENATE(\"第 \",WEEKNUM(日历日),\" 周/第 \",日历日-DATE(YEAR(日历日),1,0),\" 天\"),CONCATENATE(\"第 \",日历日-DATE(YEAR(日历日),1,0),\" 天\"))","v":"第 185 天"},{"$f":"IF(DAY(日历日)=1,CONCATENATE(\"第 \",WEEKNUM(日历日),\" 周/第 \",日历日-DATE(YEAR(日历日),1,0),\" 天\"),CONCATENATE(\"第 \",日历日-DATE(YEAR(日历日),1,0),\" 天\"))","v":"第 186 天"},{"$f":"IF(DAY(日历日)=1,CONCATENATE(\"第 \",WEEKNUM(日历日),\" 周/第 \",日历日-DATE(YEAR(日历日),1,0),\" 天\"),CONCATENATE(\"第 \",日历日-DATE(YEAR(日历日),1,0),\" 天\"))","v":"第 187 天"},{"$f":"IF(DAY(日历日)=1,CONCATENATE(\"第 \",WEEKNUM(日历日),\" 周/第 \",日历日-DATE(YEAR(日历日),1,0),\" 天\"),CONCATENATE(\"第 \",日历日-DATE(YEAR(日历日),1,0),\" 天\"))","v":"第 188 天"}]
[]
[null,null,{"$f":"星期日期和周+DATE(日历年,7,1)-WEEKDAY(DATE(日历年,7,1),(周开始日期=\"一\")+1)+8","v":"2018-07-08"},"2018-07-09","2018-07-10","2018-07-11","2018-07-12","2018-07-13","2018-07-14"]
[null,null,{"$f":"IF(WEEKDAY(日历日)=WeekStartValue,CONCATENATE(\"第 \",WEEKNUM(日历日),\" 周/第 \",日历日-DATE(YEAR(日历日),1,0),\" 天\"),CONCATENATE(\"第 \",日历日-DATE(YEAR(日历日),1,0),\" 天\"))","v":"第 28 周/第 189 天"},{"$f":"IF(WEEKDAY(日历日)=WeekStartValue,CONCATENATE(\"第 \",WEEKNUM(日历日),\" 周/第 \",日历日-DATE(YEAR(日历日),1,0),\" 天\"),CONCATENATE(\"第 \",日历日-DATE(YEAR(日历日),1,0),\" 天\"))","v":"第 190 天"},{"$f":"IF(WEEKDAY(日历日)=WeekStartValue,CONCATENATE(\"第 \",WEEKNUM(日历日),\" 周/第 \",日历日-DATE(YEAR(日历日),1,0),\" 天\"),CONCATENATE(\"第 \",日历日-DATE(YEAR(日历日),1,0),\" 天\"))","v":"第 191 天"},{"$f":"IF(WEEKDAY(日历日)=WeekStartValue,CONCATENATE(\"第 \",WEEKNUM(日历日),\" 周/第 \",日历日-DATE(YEAR(日历日),1,0),\" 天\"),CONCATENATE(\"第 \",日历日-DATE(YEAR(日历日),1,0),\" 天\"))","v":"第 192 天"},{"$f":"IF(WEEKDAY(日历日)=WeekStartValue,CONCATENATE(\"第 \",WEEKNUM(日历日),\" 周/第 \",日历日-DATE(YEAR(日历日),1,0),\" 天\"),CONCATENATE(\"第 \",日历日-DATE(YEAR(日历日),1,0),\" 天\"))","v":"第 193 天"},{"$f":"IF(WEEKDAY(日历日)=WeekStartValue,CONCATENATE(\"第 \",WEEKNUM(日历日),\" 周/第 \",日历日-DATE(YEAR(日历日),1,0),\" 天\"),CONCATENATE(\"第 \",日历日-DATE(YEAR(日历日),1,0),\" 天\"))","v":"第 194 天"},{"$f":"IF(WEEKDAY(日历日)=WeekStartValue,CONCATENATE(\"第 \",WEEKNUM(日历日),\" 周/第 \",日历日-DATE(YEAR(日历日),1,0),\" 天\"),CONCATENATE(\"第 \",日历日-DATE(YEAR(日历日),1,0),\" 天\"))","v":"第 195 天"}]
[]
[null,null,{"$f":"星期日期和周+DATE(日历年,7,1)-WEEKDAY(DATE(日历年,7,1),(周开始日期=\"一\")+1)+15","v":"2018-07-15"},"2018-07-16","2018-07-17","2018-07-18","2018-07-19","2018-07-20","2018-07-21"]
[null,null,{"$f":"IF(WEEKDAY(日历日)=WeekStartValue,CONCATENATE(\"第 \",WEEKNUM(日历日),\" 周/第 \",日历日-DATE(YEAR(日历日),1,0),\" 天\"),CONCATENATE(\"第 \",日历日-DATE(YEAR(日历日),1,0),\" 天\"))","v":"第 29 周/第 196 天"},{"$f":"IF(WEEKDAY(日历日)=WeekStartValue,CONCATENATE(\"第 \",WEEKNUM(日历日),\" 周/第 \",日历日-DATE(YEAR(日历日),1,0),\" 天\"),CONCATENATE(\"第 \",日历日-DATE(YEAR(日历日),1,0),\" 天\"))","v":"第 197 天"},{"$f":"IF(WEEKDAY(日历日)=WeekStartValue,CONCATENATE(\"第 \",WEEKNUM(日历日),\" 周/第 \",日历日-DATE(YEAR(日历日),1,0),\" 天\"),CONCATENATE(\"第 \",日历日-DATE(YEAR(日历日),1,0),\" 天\"))","v":"第 198 天"},{"$f":"IF(WEEKDAY(日历日)=WeekStartValue,CONCATENATE(\"第 \",WEEKNUM(日历日),\" 周/第 \",日历日-DATE(YEAR(日历日),1,0),\" 天\"),CONCATENATE(\"第 \",日历日-DATE(YEAR(日历日),1,0),\" 天\"))","v":"第 199 天"},{"$f":"IF(WEEKDAY(日历日)=WeekStartValue,CONCATENATE(\"第 \",WEEKNUM(日历日),\" 周/第 \",日历日-DATE(YEAR(日历日),1,0),\" 天\"),CONCATENATE(\"第 \",日历日-DATE(YEAR(日历日),1,0),\" 天\"))","v":"第 200 天"},{"$f":"IF(WEEKDAY(日历日)=WeekStartValue,CONCATENATE(\"第 \",WEEKNUM(日历日),\" 周/第 \",日历日-DATE(YEAR(日历日),1,0),\" 天\"),CONCATENATE(\"第 \",日历日-DATE(YEAR(日历日),1,0),\" 天\"))","v":"第 201 天"},{"$f":"IF(WEEKDAY(日历日)=WeekStartValue,CONCATENATE(\"第 \",WEEKNUM(日历日),\" 周/第 \",日历日-DATE(YEAR(日历日),1,0),\" 天\"),CONCATENATE(\"第 \",日历日-DATE(YEAR(日历日),1,0),\" 天\"))","v":"第 202 天"}]
[]
[null,null,{"$f":"星期日期和周+DATE(日历年,7,1)-WEEKDAY(DATE(日历年,7,1),(周开始日期=\"一\")+1)+22","v":"2018-07-22"},"2018-07-23","2018-07-24","2018-07-25","2018-07-26","2018-07-27","2018-07-28"]
[null,null,{"$f":"IF(WEEKDAY(日历日)=WeekStartValue,CONCATENATE(\"第 \",WEEKNUM(日历日),\" 周/第 \",日历日-DATE(YEAR(日历日),1,0),\" 天\"),CONCATENATE(\"第 \",日历日-DATE(YEAR(日历日),1,0),\" 天\"))","v":"第 30 周/第 203 天"},{"$f":"IF(WEEKDAY(日历日)=WeekStartValue,CONCATENATE(\"第 \",WEEKNUM(日历日),\" 周/第 \",日历日-DATE(YEAR(日历日),1,0),\" 天\"),CONCATENATE(\"第 \",日历日-DATE(YEAR(日历日),1,0),\" 天\"))","v":"第 204 天"},{"$f":"IF(WEEKDAY(日历日)=WeekStartValue,CONCATENATE(\"第 \",WEEKNUM(日历日),\" 周/第 \",日历日-DATE(YEAR(日历日),1,0),\" 天\"),CONCATENATE(\"第 \",日历日-DATE(YEAR(日历日),1,0),\" 天\"))","v":"第 205 天"},{"$f":"IF(WEEKDAY(日历日)=WeekStartValue,CONCATENATE(\"第 \",WEEKNUM(日历日),\" 周/第 \",日历日-DATE(YEAR(日历日),1,0),\" 天\"),CONCATENATE(\"第 \",日历日-DATE(YEAR(日历日),1,0),\" 天\"))","v":"第 206 天"},{"$f":"IF(WEEKDAY(日历日)=WeekStartValue,CONCATENATE(\"第 \",WEEKNUM(日历日),\" 周/第 \",日历日-DATE(YEAR(日历日),1,0),\" 天\"),CONCATENATE(\"第 \",日历日-DATE(YEAR(日历日),1,0),\" 天\"))","v":"第 207 天"},{"$f":"IF(WEEKDAY(日历日)=WeekStartValue,CONCATENATE(\"第 \",WEEKNUM(日历日),\" 周/第 \",日历日-DATE(YEAR(日历日),1,0),\" 天\"),CONCATENATE(\"第 \",日历日-DATE(YEAR(日历日),1,0),\" 天\"))","v":"第 208 天"},{"$f":"IF(WEEKDAY(日历日)=WeekStartValue,CONCATENATE(\"第 \",WEEKNUM(日历日),\" 周/第 \",日历日-DATE(YEAR(日历日),1,0),\" 天\"),CONCATENATE(\"第 \",日历日-DATE(YEAR(日历日),1,0),\" 天\"))","v":"第 209 天"}]
[]
[null,null,{"$f":"星期日期和周+DATE(日历年,7,1)-WEEKDAY(DATE(日历年,7,1),(周开始日期=\"一\")+1)+29","v":"2018-07-29"},"2018-07-30","2018-07-31","2018-08-01","2018-08-02","2018-08-03","2018-08-04"]
[null,null,{"$f":"IF(WEEKDAY(日历日)=WeekStartValue,CONCATENATE(\"第 \",WEEKNUM(日历日),\" 周/第 \",日历日-DATE(YEAR(日历日),1,0),\" 天\"),CONCATENATE(\"第 \",日历日-DATE(YEAR(日历日),1,0),\" 天\"))","v":"第 31 周/第 210 天"},{"$f":"IF(WEEKDAY(日历日)=WeekStartValue,CONCATENATE(\"第 \",WEEKNUM(日历日),\" 周/第 \",日历日-DATE(YEAR(日历日),1,0),\" 天\"),CONCATENATE(\"第 \",日历日-DATE(YEAR(日历日),1,0),\" 天\"))","v":"第 211 天"},{"$f":"IF(WEEKDAY(日历日)=WeekStartValue,CONCATENATE(\"第 \",WEEKNUM(日历日),\" 周/第 \",日历日-DATE(YEAR(日历日),1,0),\" 天\"),CONCATENATE(\"第 \",日历日-DATE(YEAR(日历日),1,0),\" 天\"))","v":"第 212 天"},{"$f":"IF(WEEKDAY(日历日)=WeekStartValue,CONCATENATE(\"第 \",WEEKNUM(日历日),\" 周/第 \",日历日-DATE(YEAR(日历日),1,0),\" 天\"),CONCATENATE(\"第 \",日历日-DATE(YEAR(日历日),1,0),\" 天\"))","v":"第 213 天"},{"$f":"IF(WEEKDAY(日历日)=WeekStartValue,CONCATENATE(\"第 \",WEEKNUM(日历日),\" 周/第 \",日历日-DATE(YEAR(日历日),1,0),\" 天\"),CONCATENATE(\"第 \",日历日-DATE(YEAR(日历日),1,0),\" 天\"))","v":"第 214 天"},{"$f":"IF(WEEKDAY(日历日)=WeekStartValue,CONCATENATE(\"第 \",WEEKNUM(日历日),\" 周/第 \",日历日-DATE(YEAR(日历日),1,0),\" 天\"),CONCATENATE(\"第 \",日历日-DATE(YEAR(日历日),1,0),\" 天\"))","v":"第 215 天"},{"$f":"IF(WEEKDAY(日历日)=WeekStartValue,CONCATENATE(\"第 \",WEEKNUM(日历日),\" 周/第 \",日历日-DATE(YEAR(日历日),1,0),\" 天\"),CONCATENATE(\"第 \",日历日-DATE(YEAR(日历日),1,0),\" 天\"))","v":"第 216 天"}]
[{"$nulls":4},"备注"]
[]
[null,null,{"$f":"星期日期和周+DATE(日历年,7,1)-WEEKDAY(DATE(日历年,7,1),(周开始日期=\"一\")+1)+36","v":"2018-08-05"},"2018-08-06"]
[null,null,{"$f":"IF(WEEKDAY(日历日)=WeekStartValue,CONCATENATE(\"第 \",WEEKNUM(日历日),\" 周/第 \",日历日-DATE(YEAR(日历日),1,0),\" 天\"),CONCATENATE(\"第 \",日历日-DATE(YEAR(日历日),1,0),\" 天\"))","v":"第 32 周/第 217 天"},{"$f":"IF(WEEKDAY(日历日)=WeekStartValue,CONCATENATE(\"第 \",WEEKNUM(日历日),\" 周/第 \",日历日-DATE(YEAR(日历日),1,0),\" 天\"),CONCATENATE(\"第 \",日历日-DATE(YEAR(日历日),1,0),\" 天\"))","v":"第 218 天"}]

{"sheet":"8月","index":7,"n_rows":20,"n_cols":9,"rows_kept":20,"merged":[[16,2,17,2],[17,4,19,8]]}
[null,"8 月",{"$f":"UPPER(TEXT(周开始日期,\"ddd\"))","v":"日"},{"$f":"UPPER(TEXT(D3,\"aaa\"))","v":"一"},"二","三","四","五","六"]
[null,{"$f":"日历年","v":2018}]
[null,null,{"$f":"星期日期和周+DATE(日历年,8,1)-WEEKDAY(DATE(日历年,8,1),(周开始日期=\"一\")+1)+1","v":"2018-07-29"},"2018-07-30","2018-07-31","2018-08-01","2018-08-02","2018-08-03","2018-08-04"]
[null,null,{"$f":"IF(DAY(日历日)=1,CONCATENATE(\"第 \",WEEKNUM(日历日),\" 周/第 \",日历日-DATE(YEAR(日历日),1,0),\" 天\"),CONCATENATE(\"第 \",日历日-DATE(YEAR(日历日),1,0),\" 天\"))","v":"第 210 天"},{"$f":"IF(DAY(日历日)=1,CONCATENATE(\"第 \",WEEKNUM(日历日),\" 周/第 \",日历日-DATE(YEAR(日历日),1,0),\" 天\"),CONCATENATE(\"第 \",日历日-DATE(YEAR(日历日),1,0),\" 天\"))","v":"第 211 天"},{"$f":"IF(DAY(日历日)=1,CONCATENATE(\"第 \",WEEKNUM(日历日),\" 周/第 \",日历日-DATE(YEAR(日历日),1,0),\" 天\"),CONCATENATE(\"第 \",日历日-DATE(YEAR(日历日),1,0),\" 天\"))","v":"第 212 天"},{"$f":"IF(DAY(日历日)=1,CONCATENATE(\"第 \",WEEKNUM(日历日),\" 周/第 \",日历日-DATE(YEAR(日历日),1,0),\" 天\"),CONCATENATE(\"第 \",日历日-DATE(YEAR(日历日),1,0),\" 天\"))","v":"第 31 周/第 213 天"},{"$f":"IF(DAY(日历日)=1,CONCATENATE(\"第 \",WEEKNUM(日历日),\" 周/第 \",日历日-DATE(YEAR(日历日),1,0),\" 天\"),CONCATENATE(\"第 \",日历日-DATE(YEAR(日历日),1,0),\" 天\"))","v":"第 214 天"},{"$f":"IF(DAY(日历日)=1,CONCATENATE(\"第 \",WEEKNUM(日历日),\" 周/第 \",日历日-DATE(YEAR(日历日),1,0),\" 天\"),CONCATENATE(\"第 \",日历日-DATE(YEAR(日历日),1,0),\" 天\"))","v":"第 215 天"},{"$f":"IF(DAY(日历日)=1,CONCATENATE(\"第 \",WEEKNUM(日历日),\" 周/第 \",日历日-DATE(YEAR(日历日),1,0),\" 天\"),CONCATENATE(\"第 \",日历日-DATE(YEAR(日历日),1,0),\" 天\"))","v":"第 216 天"}]
[]
[null,null,{"$f":"星期日期和周+DATE(日历年,8,1)-WEEKDAY(DATE(日历年,8,1),(周开始日期=\"一\")+1)+8","v":"2018-08-05"},"2018-08-06","2018-08-07","2018-08-08","2018-08-09","2018-08-10","2018-08-11"]
[null,null,{"$f":"IF(WEEKDAY(日历日)=WeekStartValue,CONCATENATE(\"第 \",WEEKNUM(日历日),\" 周/第 \",日历日-DATE(YEAR(日历日),1,0),\" 天\"),CONCATENATE(\"第 \",日历日-DATE(YEAR(日历日),1,0),\" 天\"))","v":"第 32 周/第 217 天"},{"$f":"IF(WEEKDAY(日历日)=WeekStartValue,CONCATENATE(\"第 \",WEEKNUM(日历日),\" 周/第 \",日历日-DATE(YEAR(日历日),1,0),\" 天\"),CONCATENATE(\"第 \",日历日-DATE(YEAR(日历日),1,0),\" 天\"))","v":"第 218 天"},{"$f":"IF(WEEKDAY(日历日)=WeekStartValue,CONCATENATE(\"第 \",WEEKNUM(日历日),\" 周/第 \",日历日-DATE(YEAR(日历日),1,0),\" 天\"),CONCATENATE(\"第 \",日历日-DATE(YEAR(日历日),1,0),\" 天\"))","v":"第 219 天"},{"$f":"IF(WEEKDAY(日历日)=WeekStartValue,CONCATENATE(\"第 \",WEEKNUM(日历日),\" 周/第 \",日历日-DATE(YEAR(日历日),1,0),\" 天\"),CONCATENATE(\"第 \",日历日-DATE(YEAR(日历日),1,0),\" 天\"))","v":"第 220 天"},{"$f":"IF(WEEKDAY(日历日)=WeekStartValue,CONCATENATE(\"第 \",WEEKNUM(日历日),\" 周/第 \",日历日-DATE(YEAR(日历日),1,0),\" 天\"),CONCATENATE(\"第 \",日历日-DATE(YEAR(日历日),1,0),\" 天\"))","v":"第 221 天"},{"$f":"IF(WEEKDAY(日历日)=WeekStartValue,CONCATENATE(\"第 \",WEEKNUM(日历日),\" 周/第 \",日历日-DATE(YEAR(日历日),1,0),\" 天\"),CONCATENATE(\"第 \",日历日-DATE(YEAR(日历日),1,0),\" 天\"))","v":"第 222 天"},{"$f":"IF(WEEKDAY(日历日)=WeekStartValue,CONCATENATE(\"第 \",WEEKNUM(日历日),\" 周/第 \",日历日-DATE(YEAR(日历日),1,0),\" 天\"),CONCATENATE(\"第 \",日历日-DATE(YEAR(日历日),1,0),\" 天\"))","v":"第 223 天"}]
[]
[null,null,{"$f":"星期日期和周+DATE(日历年,8,1)-WEEKDAY(DATE(日历年,8,1),(周开始日期=\"一\")+1)+15","v":"2018-08-12"},"2018-08-13","2018-08-14","2018-08-15","2018-08-16","2018-08-17","2018-08-18"]
[null,null,{"$f":"IF(WEEKDAY(日历日)=WeekStartValue,CONCATENATE(\"第 \",WEEKNUM(日历日),\" 周/第 \",日历日-DATE(YEAR(日历日),1,0),\" 天\"),CONCATENATE(\"第 \",日历日-DATE(YEAR(日历日),1,0),\" 天\"))","v":"第 33 周/第 224 天"},{"$f":"IF(WEEKDAY(日历日)=WeekStartValue,CONCATENATE(\"第 \",WEEKNUM(日历日),\" 周/第 \",日历日-DATE(YEAR(日历日),1,0),\" 天\"),CONCATENATE(\"第 \",日历日-DATE(YEAR(日历日),1,0),\" 天\"))","v":"第 225 天"},{"$f":"IF(WEEKDAY(日历日)=WeekStartValue,CONCATENATE(\"第 \",WEEKNUM(日历日),\" 周/第 \",日历日-DATE(YEAR(日历日),1,0),\" 天\"),CONCATENATE(\"第 \",日历日-DATE(YEAR(日历日),1,0),\" 天\"))","v":"第 226 天"},{"$f":"IF(WEEKDAY(日历日)=WeekStartValue,CONCATENATE(\"第 \",WEEKNUM(日历日),\" 周/第 \",日历日-DATE(YEAR(日历日),1,0),\" 天\"),CONCATENATE(\"第 \",日历日-DATE(YEAR(日历日),1,0),\" 天\"))","v":"第 227 天"},{"$f":"IF(WEEKDAY(日历日)=WeekStartValue,CONCATENATE(\"第 \",WEEKNUM(日历日),\" 周/第 \",日历日-DATE(YEAR(日历日),1,0),\" 天\"),CONCATENATE(\"第 \",日历日-DATE(YEAR(日历日),1,0),\" 天\"))","v":"第 228 天"},{"$f":"IF(WEEKDAY(日历日)=WeekStartValue,CONCATENATE(\"第 \",WEEKNUM(日历日),\" 周/第 \",日历日-DATE(YEAR(日历日),1,0),\" 天\"),CONCATENATE(\"第 \",日历日-DATE(YEAR(日历日),1,0),\" 天\"))","v":"第 229 天"},{"$f":"IF(WEEKDAY(日历日)=WeekStartValue,CONCATENATE(\"第 \",WEEKNUM(日历日),\" 周/第 \",日历日-DATE(YEAR(日历日),1,0),\" 天\"),CONCATENATE(\"第 \",日历日-DATE(YEAR(日历日),1,0),\" 天\"))","v":"第 230 天"}]
[]
[null,null,{"$f":"星期日期和周+DATE(日历年,8,1)-WEEKDAY(DATE(日历年,8,1),(周开始日期=\"一\")+1)+22","v":"2018-08-19"},"2018-08-20","2018-08-21","2018-08-22","2018-08-23","2018-08-24","2018-08-25"]
[null,null,{"$f":"IF(WEEKDAY(日历日)=WeekStartValue,CONCATENATE(\"第 \",WEEKNUM(日历日),\" 周/第 \",日历日-DATE(YEAR(日历日),1,0),\" 天\"),CONCATENATE(\"第 \",日历日-DATE(YEAR(日历日),1,0),\" 天\"))","v":"第 34 周/第 231 天"},{"$f":"IF(WEEKDAY(日历日)=WeekStartValue,CONCATENATE(\"第 \",WEEKNUM(日历日),\" 周/第 \",日历日-DATE(YEAR(日历日),1,0),\" 天\"),CONCATENATE(\"第 \",日历日-DATE(YEAR(日历日),1,0),\" 天\"))","v":"第 232 天"},{"$f":"IF(WEEKDAY(日历日)=WeekStartValue,CONCATENATE(\"第 \",WEEKNUM(日历日),\" 周/第 \",日历日-DATE(YEAR(日历日),1,0),\" 天\"),CONCATENATE(\"第 \",日历日-DATE(YEAR(日历日),1,0),\" 天\"))","v":"第 233 天"},{"$f":"IF(WEEKDAY(日历日)=WeekStartValue,CONCATENATE(\"第 \",WEEKNUM(日历日),\" 周/第 \",日历日-DATE(YEAR(日历日),1,0),\" 天\"),CONCATENATE(\"第 \",日历日-DATE(YEAR(日历日),1,0),\" 天\"))","v":"第 234 天"},{"$f":"IF(WEEKDAY(日历日)=WeekStartValue,CONCATENATE(\"第 \",WEEKNUM(日历日),\" 周/第 \",日历日-DATE(YEAR(日历日),1,0),\" 天\"),CONCATENATE(\"第 \",日历日-DATE(YEAR(日历日),1,0),\" 天\"))","v":"第 235 天"},{"$f":"IF(WEEKDAY(日历日)=WeekStartValue,CONCATENATE(\"第 \",WEEKNUM(日历日),\" 周/第 \",日历日-DATE(YEAR(日历日),1,0),\" 天\"),CONCATENATE(\"第 \",日历日-DATE(YEAR(日历日),1,0),\" 天\"))","v":"第 236 天"},{"$f":"IF(WEEKDAY(日历日)=WeekStartValue,CONCATENATE(\"第 \",WEEKNUM(日历日),\" 周/第 \",日历日-DATE(YEAR(日历日),1,0),\" 天\"),CONCATENATE(\"第 \",日历日-DATE(YEAR(日历日),1,0),\" 天\"))","v":"第 237 天"}]
[]
[null,null,{"$f":"星期日期和周+DATE(日历年,8,1)-WEEKDAY(DATE(日历年,8,1),(周开始日期=\"一\")+1)+29","v":"2018-08-26"},"2018-08-27","2018-08-28","2018-08-29","2018-08-30","2018-08-31","2018-09-01"]
[null,null,{"$f":"IF(WEEKDAY(日历日)=WeekStartValue,CONCATENATE(\"第 \",WEEKNUM(日历日),\" 周/第 \",日历日-DATE(YEAR(日历日),1,0),\" 天\"),CONCATENATE(\"第 \",日历日-DATE(YEAR(日历日),1,0),\" 天\"))","v":"第 35 周/第 238 天"},{"$f":"IF(WEEKDAY(日历日)=WeekStartValue,CONCATENATE(\"第 \",WEEKNUM(日历日),\" 周/第 \",日历日-DATE(YEAR(日历日),1,0),\" 天\"),CONCATENATE(\"第 \",日历日-DATE(YEAR(日历日),1,0),\" 天\"))","v":"第 239 天"},{"$f":"IF(WEEKDAY(日历日)=WeekStartValue,CONCATENATE(\"第 \",WEEKNUM(日历日),\" 周/第 \",日历日-DATE(YEAR(日历日),1,0),\" 天\"),CONCATENATE(\"第 \",日历日-DATE(YEAR(日历日),1,0),\" 天\"))","v":"第 240 天"},{"$f":"IF(WEEKDAY(日历日)=WeekStartValue,CONCATENATE(\"第 \",WEEKNUM(日历日),\" 周/第 \",日历日-DATE(YEAR(日历日),1,0),\" 天\"),CONCATENATE(\"第 \",日历日-DATE(YEAR(日历日),1,0),\" 天\"))","v":"第 241 天"},{"$f":"IF(WEEKDAY(日历日)=WeekStartValue,CONCATENATE(\"第 \",WEEKNUM(日历日),\" 周/第 \",日历日-DATE(YEAR(日历日),1,0),\" 天\"),CONCATENATE(\"第 \",日历日-DATE(YEAR(日历日),1,0),\" 天\"))","v":"第 242 天"},{"$f":"IF(WEEKDAY(日历日)=WeekStartValue,CONCATENATE(\"第 \",WEEKNUM(日历日),\" 周/第 \",日历日-DATE(YEAR(日历日),1,0),\" 天\"),CONCATENATE(\"第 \",日历日-DATE(YEAR(日历日),1,0),\" 天\"))","v":"第 243 天"},{"$f":"IF(WEEKDAY(日历日)=WeekStartValue,CONCATENATE(\"第 \",WEEKNUM(日历日),\" 周/第 \",日历日-DATE(YEAR(日历日),1,0),\" 天\"),CONCATENATE(\"第 \",日历日-DATE(YEAR(日历日),1,0),\" 天\"))","v":"第 244 天"}]
[{"$nulls":4},"备注"]
[]
[null,null,{"$f":"星期日期和周+DATE(日历年,8,1)-WEEKDAY(DATE(日历年,8,1),(周开始日期=\"一\")+1)+36","v":"2018-09-02"},"2018-09-03"]
[null,null,{"$f":"IF(WEEKDAY(日历日)=WeekStartValue,CONCATENATE(\"第 \",WEEKNUM(日历日),\" 周/第 \",日历日-DATE(YEAR(日历日),1,0),\" 天\"),CONCATENATE(\"第 \",日历日-DATE(YEAR(日历日),1,0),\" 天\"))","v":"第 36 周/第 245 天"},{"$f":"IF(WEEKDAY(日历日)=WeekStartValue,CONCATENATE(\"第 \",WEEKNUM(日历日),\" 周/第 \",日历日-DATE(YEAR(日历日),1,0),\" 天\"),CONCATENATE(\"第 \",日历日-DATE(YEAR(日历日),1,0),\" 天\"))","v":"第 246 天"}]

{"sheet":"9月","index":8,"n_rows":20,"n_cols":9,"rows_kept":20,"merged":[[16,2,17,2],[17,4,19,8]]}
[null,"9 月",{"$f":"UPPER(TEXT(周开始日期,\"ddd\"))","v":"日"},{"$f":"UPPER(TEXT(D3,\"aaa\"))","v":"一"},"二","三","四","五","六"]
[null,{"$f":"日历年","v":2018}]
[null,null,{"$f":"星期日期和周+DATE(日历年,9,1)-WEEKDAY(DATE(日历年,9,1),(周开始日期=\"一\")+1)+1","v":"2018-08-26"},"2018-08-27","2018-08-28","2018-08-29","2018-08-30","2018-08-31","2018-09-01"]
[null,null,{"$f":"IF(DAY(日历日)=1,CONCATENATE(\"第 \",WEEKNUM(日历日),\" 周/第 \",日历日-DATE(YEAR(日历日),1,0),\" 天\"),CONCATENATE(\"第 \",日历日-DATE(YEAR(日历日),1,0),\" 天\"))","v":"第 238 天"},{"$f":"IF(DAY(日历日)=1,CONCATENATE(\"第 \",WEEKNUM(日历日),\" 周/第 \",日历日-DATE(YEAR(日历日),1,0),\" 天\"),CONCATENATE(\"第 \",日历日-DATE(YEAR(日历日),1,0),\" 天\"))","v":"第 239 天"},{"$f":"IF(DAY(日历日)=1,CONCATENATE(\"第 \",WEEKNUM(日历日),\" 周/第 \",日历日-DATE(YEAR(日历日),1,0),\" 天\"),CONCATENATE(\"第 \",日历日-DATE(YEAR(日历日),1,0),\" 天\"))","v":"第 240 天"},{"$f":"IF(DAY(日历日)=1,CONCATENATE(\"第 \",WEEKNUM(日历日),\" 周/第 \",日历日-DATE(YEAR(日历日),1,0),\" 天\"),CONCATENATE(\"第 \",日历日-DATE(YEAR(日历日),1,0),\" 天\"))","v":"第 241 天"},{"$f":"IF(DAY(日历日)=1,CONCATENATE(\"第 \",WEEKNUM(日历日),\" 周/第 \",日历日-DATE(YEAR(日历日),1,0),\" 天\"),CONCATENATE(\"第 \",日历日-DATE(YEAR(日历日),1,0),\" 天\"))","v":"第 242 天"},{"$f":"IF(DAY(日历日)=1,CONCATENATE(\"第 \",WEEKNUM(日历日),\" 周/第 \",日历日-DATE(YEAR(日历日),1,0),\" 天\"),CONCATENATE(\"第 \",日历日-DATE(YEAR(日历日),1,0),\" 天\"))","v":"第 243 天"},{"$f":"IF(DAY(日历日)=1,CONCATENATE(\"第 \",WEEKNUM(日历日),\" 周/第 \",日历日-DATE(YEAR(日历日),1,0),\" 天\"),CONCATENATE(\"第 \",日历日-DATE(YEAR(日历日),1,0),\" 天\"))","v":"第 35 周/第 244 天"}]
[]
[null,null,{"$f":"星期日期和周+DATE(日历年,9,1)-WEEKDAY(DATE(日历年,9,1),(周开始日期=\"一\")+1)+8","v":"2018-09-02"},"2018-09-03","2018-09-04","2018-09-05","2018-09-06","2018-09-07","2018-09-08"]
[null,null,{"$f":"IF(WEEKDAY(日历日)=WeekStartValue,CONCATENATE(\"第 \",WEEKNUM(日历日),\" 周/第 \",日历日-DATE(YEAR(日历日),1,0),\" 天\"),CONCATENATE(\"第 \",日历日-DATE(YEAR(日历日),1,0),\" 天\"))","v":"第 36 周/第 245 天"},{"$f":"IF(WEEKDAY(日历日)=WeekStartValue,CONCATENATE(\"第 \",WEEKNUM(日历日),\" 周/第 \",日历日-DATE(YEAR(日历日),1,0),\" 天\"),CONCATENATE(\"第 \",日历日-DATE(YEAR(日历日),1,0),\" 天\"))","v":"第 246 天"},{"$f":"IF(WEEKDAY(日历日)=WeekStartValue,CONCATENATE(\"第 \",WEEKNUM(日历日),\" 周/第 \",日历日-DATE(YEAR(日历日),1,0),\" 天\"),CONCATENATE(\"第 \",日历日-DATE(YEAR(日历日),1,0),\" 天\"))","v":"第 247 天"},{"$f":"IF(WEEKDAY(日历日)=WeekStartValue,CONCATENATE(\"第 \",WEEKNUM(日历日),\" 周/第 \",日历日-DATE(YEAR(日历日),1,0),\" 天\"),CONCATENATE(\"第 \",日历日-DATE(YEAR(日历日),1,0),\" 天\"))","v":"第 248 天"},{"$f":"IF(WEEKDAY(日历日)=WeekStartValue,CONCATENATE(\"第 \",WEEKNUM(日历日),\" 周/第 \",日历日-DATE(YEAR(日历日),1,0),\" 天\"),CONCATENATE(\"第 \",日历日-DATE(YEAR(日历日),1,0),\" 天\"))","v":"第 249 天"},{"$f":"IF(WEEKDAY(日历日)=WeekStartValue,CONCATENATE(\"第 \",WEEKNUM(日历日),\" 周/第 \",日历日-DATE(YEAR(日历日),1,0),\" 天\"),CONCATENATE(\"第 \",日历日-DATE(YEAR(日历日),1,0),\" 天\"))","v":"第 250 天"},{"$f":"IF(WEEKDAY(日历日)=WeekStartValue,CONCATENATE(\"第 \",WEEKNUM(日历日),\" 周/第 \",日历日-DATE(YEAR(日历日),1,0),\" 天\"),CONCATENATE(\"第 \",日历日-DATE(YEAR(日历日),1,0),\" 天\"))","v":"第 251 天"}]
[]
[null,null,{"$f":"星期日期和周+DATE(日历年,9,1)-WEEKDAY(DATE(日历年,9,1),(周开始日期=\"一\")+1)+15","v":"2018-09-09"},"2018-09-10","2018-09-11","2018-09-12","2018-09-13","2018-09-14","2018-09-15"]
[null,null,{"$f":"IF(WEEKDAY(日历日)=WeekStartValue,CONCATENATE(\"第 \",WEEKNUM(日历日),\" 周/第 \",日历日-DATE(YEAR(日历日),1,0),\" 天\"),CONCATENATE(\"第 \",日历日-DATE(YEAR(日历日),1,0),\" 天\"))","v":"第 37 周/第 252 天"},{"$f":"IF(WEEKDAY(日历日)=WeekStartValue,CONCATENATE(\"第 \",WEEKNUM(日历日),\" 周/第 \",日历日-DATE(YEAR(日历日),1,0),\" 天\"),CONCATENATE(\"第 \",日历日-DATE(YEAR(日历日),1,0),\" 天\"))","v":"第 253 天"},{"$f":"IF(WEEKDAY(日历日)=WeekStartValue,CONCATENATE(\"第 \",WEEKNUM(日历日),\" 周/第 \",日历日-DATE(YEAR(日历日),1,0),\" 天\"),CONCATENATE(\"第 \",日历日-DATE(YEAR(日历日),1,0),\" 天\"))","v":"第 254 天"},{"$f":"IF(WEEKDAY(日历日)=WeekStartValue,CONCATENATE(\"第 \",WEEKNUM(日历日),\" 周/第 \",日历日-DATE(YEAR(日历日),1,0),\" 天\"),CONCATENATE(\"第 \",日历日-DATE(YEAR(日历日),1,0),\" 天\"))","v":"第 255 天"},{"$f":"IF(WEEKDAY(日历日)=WeekStartValue,CONCATENATE(\"第 \",WEEKNUM(日历日),\" 周/第 \",日历日-DATE(YEAR(日历日),1,0),\" 天\"),CONCATENATE(\"第 \",日历日-DATE(YEAR(日历日),1,0),\" 天\"))","v":"第 256 天"},{"$f":"IF(WEEKDAY(日历日)=WeekStartValue,CONCATENATE(\"第 \",WEEKNUM(日历日),\" 周/第 \",日历日-DATE(YEAR(日历日),1,0),\" 天\"),CONCATENATE(\"第 \",日历日-DATE(YEAR(日历日),1,0),\" 天\"))","v":"第 257 天"},{"$f":"IF(WEEKDAY(日历日)=WeekStartValue,CONCATENATE(\"第 \",WEEKNUM(日历日),\" 周/第 \",日历日-DATE(YEAR(日历日),1,0),\" 天\"),CONCATENATE(\"第 \",日历日-DATE(YEAR(日历日),1,0),\" 天\"))","v":"第 258 天"}]
[]
[null,null,{"$f":"星期日期和周+DATE(日历年,9,1)-WEEKDAY(DATE(日历年,9,1),(周开始日期=\"一\")+1)+22","v":"2018-09-16"},"2018-09-17","2018-09-18","2018-09-19","2018-09-20","2018-09-21","2018-09-22"]
[null,null,{"$f":"IF(WEEKDAY(日历日)=WeekStartValue,CONCATENATE(\"第 \",WEEKNUM(日历日),\" 周/第 \",日历日-DATE(YEAR(日历日),1,0),\" 天\"),CONCATENATE(\"第 \",日历日-DATE(YEAR(日历日),1,0),\" 天\"))","v":"第 38 周/第 259 天"},{"$f":"IF(WEEKDAY(日历日)=WeekStartValue,CONCATENATE(\"第 \",WEEKNUM(日历日),\" 周/第 \",日历日-DATE(YEAR(日历日),1,0),\" 天\"),CONCATENATE(\"第 \",日历日-DATE(YEAR(日历日),1,0),\" 天\"))","v":"第 260 天"},{"$f":"IF(WEEKDAY(日历日)=WeekStartValue,CONCATENATE(\"第 \",WEEKNUM(日历日),\" 周/第 \",日历日-DATE(YEAR(日历日),1,0),\" 天\"),CONCATENATE(\"第 \",日历日-DATE(YEAR(日历日),1,0),\" 天\"))","v":"第 261 天"},{"$f":"IF(WEEKDAY(日历日)=WeekStartValue,CONCATENATE(\"第 \",WEEKNUM(日历日),\" 周/第 \",日历日-DATE(YEAR(日历日),1,0),\" 天\"),CONCATENATE(\"第 \",日历日-DATE(YEAR(日历日),1,0),\" 天\"))","v":"第 262 天"},{"$f":"IF(WEEKDAY(日历日)=WeekStartValue,CONCATENATE(\"第 \",WEEKNUM(日历日),\" 周/第 \",日历日-DATE(YEAR(日历日),1,0),\" 天\"),CONCATENATE(\"第 \",日历日-DATE(YEAR(日历日),1,0),\" 天\"))","v":"第 263 天"},{"$f":"IF(WEEKDAY(日历日)=WeekStartValue,CONCATENATE(\"第 \",WEEKNUM(日历日),\" 周/第 \",日历日-DATE(YEAR(日历日),1,0),\" 天\"),CONCATENATE(\"第 \",日历日-DATE(YEAR(日历日),1,0),\" 天\"))","v":"第 264 天"},{"$f":"IF(WEEKDAY(日历日)=WeekStartValue,CONCATENATE(\"第 \",WEEKNUM(日历日),\" 周/第 \",日历日-DATE(YEAR(日历日),1,0),\" 天\"),CONCATENATE(\"第 \",日历日-DATE(YEAR(日历日),1,0),\" 天\"))","v":"第 265 天"}]
[]
[null,null,{"$f":"星期日期和周+DATE(日历年,9,1)-WEEKDAY(DATE(日历年,9,1),(周开始日期=\"一\")+1)+29","v":"2018-09-23"},"2018-09-24","2018-09-25","2018-09-26","2018-09-27","2018-09-28","2018-09-29"]
[null,null,{"$f":"IF(WEEKDAY(日历日)=WeekStartValue,CONCATENATE(\"第 \",WEEKNUM(日历日),\" 周/第 \",日历日-DATE(YEAR(日历日),1,0),\" 天\"),CONCATENATE(\"第 \",日历日-DATE(YEAR(日历日),1,0),\" 天\"))","v":"第 39 周/第 266 天"},{"$f":"IF(WEEKDAY(日历日)=WeekStartValue,CONCATENATE(\"第 \",WEEKNUM(日历日),\" 周/第 \",日历日-DATE(YEAR(日历日),1,0),\" 天\"),CONCATENATE(\"第 \",日历日-DATE(YEAR(日历日),1,0),\" 天\"))","v":"第 267 天"},{"$f":"IF(WEEKDAY(日历日)=WeekStartValue,CONCATENATE(\"第 \",WEEKNUM(日历日),\" 周/第 \",日历日-DATE(YEAR(日历日),1,0),\" 天\"),CONCATENATE(\"第 \",日历日-DATE(YEAR(日历日),1,0),\" 天\"))","v":"第 268 天"},{"$f":"IF(WEEKDAY(日历日)=WeekStartValue,CONCATENATE(\"第 \",WEEKNUM(日历日),\" 周/第 \",日历日-DATE(YEAR(日历日),1,0),\" 天\"),CONCATENATE(\"第 \",日历日-DATE(YEAR(日历日),1,0),\" 天\"))","v":"第 269 天"},{"$f":"IF(WEEKDAY(日历日)=WeekStartValue,CONCATENATE(\"第 \",WEEKNUM(日历日),\" 周/第 \",日历日-DATE(YEAR(日历日),1,0),\" 天\"),CONCATENATE(\"第 \",日历日-DATE(YEAR(日历日),1,0),\" 天\"))","v":"第 270 天"},{"$f":"IF(WEEKDAY(日历日)=WeekStartValue,CONCATENATE(\"第 \",WEEKNUM(日历日),\" 周/第 \",日历日-DATE(YEAR(日历日),1,0),\" 天\"),CONCATENATE(\"第 \",日历日-DATE(YEAR(日历日),1,0),\" 天\"))","v":"第 271 天"},{"$f":"IF(WEEKDAY(日历日)=WeekStartValue,CONCATENATE(\"第 \",WEEKNUM(日历日),\" 周/第 \",日历日-DATE(YEAR(日历日),1,0),\" 天\"),CONCATENATE(\"第 \",日历日-DATE(YEAR(日历日),1,0),\" 天\"))","v":"第 272 天"}]
[{"$nulls":4},"备注"]
[]
[null,null,{"$f":"星期日期和周+DATE(日历年,9,1)-WEEKDAY(DATE(日历年,9,1),(周开始日期=\"一\")+1)+36","v":"2018-09-30"},"2018-10-01"]
[null,null,{"$f":"IF(WEEKDAY(日历日)=WeekStartValue,CONCATENATE(\"第 \",WEEKNUM(日历日),\" 周/第 \",日历日-DATE(YEAR(日历日),1,0),\" 天\"),CONCATENATE(\"第 \",日历日-DATE(YEAR(日历日),1,0),\" 天\"))","v":"第 40 周/第 273 天"},{"$f":"IF(WEEKDAY(日历日)=WeekStartValue,CONCATENATE(\"第 \",WEEKNUM(日历日),\" 周/第 \",日历日-DATE(YEAR(日历日),1,0),\" 天\"),CONCATENATE(\"第 \",日历日-DATE(YEAR(日历日),1,0),\" 天\"))","v":"第 274 天"}]

{"sheet":"10月","index":9,"n_rows":20,"n_cols":9,"rows_kept":20,"merged":[[16,2,17,2],[17,4,19,8]]}
[null,"10 月",{"$f":"UPPER(TEXT(周开始日期,\"ddd\"))","v":"日"},{"$f":"UPPER(TEXT(D3,\"aaa\"))","v":"一"},"二","三","四","五","六"]
[null,{"$f":"日历年","v":2018}]
[null,null,{"$f":"星期日期和周+DATE(日历年,10,1)-WEEKDAY(DATE(日历年,10,1),(周开始日期=\"一\")+1)+1","v":"2018-09-30"},"2018-10-01","2018-10-02","2018-10-03","2018-10-04","2018-10-05","2018-10-06"]
[null,null,{"$f":"IF(DAY(日历日)=1,CONCATENATE(\"第 \",WEEKNUM(日历日),\" 周/第 \",日历日-DATE(YEAR(日历日),1,0),\" 天\"),CONCATENATE(\"第 \",日历日-DATE(YEAR(日历日),1,0),\" 天\"))","v":"第 273 天"},{"$f":"IF(DAY(日历日)=1,CONCATENATE(\"第 \",WEEKNUM(日历日),\" 周/第 \",日历日-DATE(YEAR(日历日),1,0),\" 天\"),CONCATENATE(\"第 \",日历日-DATE(YEAR(日历日),1,0),\" 天\"))","v":"第 40 周/第 274 天"},{"$f":"IF(DAY(日历日)=1,CONCATENATE(\"第 \",WEEKNUM(日历日),\" 周/第 \",日历日-DATE(YEAR(日历日),1,0),\" 天\"),CONCATENATE(\"第 \",日历日-DATE(YEAR(日历日),1,0),\" 天\"))","v":"第 275 天"},{"$f":"IF(DAY(日历日)=1,CONCATENATE(\"第 \",WEEKNUM(日历日),\" 周/第 \",日历日-DATE(YEAR(日历日),1,0),\" 天\"),CONCATENATE(\"第 \",日历日-DATE(YEAR(日历日),1,0),\" 天\"))","v":"第 276 天"},{"$f":"IF(DAY(日历日)=1,CONCATENATE(\"第 \",WEEKNUM(日历日),\" 周/第 \",日历日-DATE(YEAR(日历日),1,0),\" 天\"),CONCATENATE(\"第 \",日历日-DATE(YEAR(日历日),1,0),\" 天\"))","v":"第 277 天"},{"$f":"IF(DAY(日历日)=1,CONCATENATE(\"第 \",WEEKNUM(日历日),\" 周/第 \",日历日-DATE(YEAR(日历日),1,0),\" 天\"),CONCATENATE(\"第 \",日历日-DATE(YEAR(日历日),1,0),\" 天\"))","v":"第 278 天"},{"$f":"IF(DAY(日历日)=1,CONCATENATE(\"第 \",WEEKNUM(日历日),\" 周/第 \",日历日-DATE(YEAR(日历日),1,0),\" 天\"),CONCATENATE(\"第 \",日历日-DATE(YEAR(日历日),1,0),\" 天\"))","v":"第 279 天"}]
[]
[null,null,{"$f":"星期日期和周+DATE(日历年,10,1)-WEEKDAY(DATE(日历年,10,1),(周开始日期=\"一\")+1)+8","v":"2018-10-07"},"2018-10-08","2018-10-09","2018-10-10","2018-10-11","2018-10-12","2018-10-13"]
[null,null,{"$f":"IF(WEEKDAY(日历日)=WeekStartValue,CONCATENATE(\"第 \",WEEKNUM(日历日),\" 周/第 \",日历日-DATE(YEAR(日历日),1,0),\" 天\"),CONCATENATE(\"第 \",日历日-DATE(YEAR(日历日),1,0),\" 天\"))","v":"第 41 周/第 280 天"},{"$f":"IF(WEEKDAY(日历日)=WeekStartValue,CONCATENATE(\"第 \",WEEKNUM(日历日),\" 周/第 \",日历日-DATE(YEAR(日历日),1,0),\" 天\"),CONCATENATE(\"第 \",日历日-DATE(YEAR(日历日),1,0),\" 天\"))","v":"第 281 天"},{"$f":"IF(WEEKDAY(日历日)=WeekStartValue,CONCATENATE(\"第 \",WEEKNUM(日历日),\" 周/第 \",日历日-DATE(YEAR(日历日),1,0),\" 天\"),CONCATENATE(\"第 \",日历日-DATE(YEAR(日历日),1,0),\" 天\"))","v":"第 282 天"},{"$f":"IF(WEEKDAY(日历日)=WeekStartValue,CONCATENATE(\"第 \",WEEKNUM(日历日),\" 周/第 \",日历日-DATE(YEAR(日历日),1,0),\" 天\"),CONCATENATE(\"第 \",日历日-DATE(YEAR(日历日),1,0),\" 天\"))","v":"第 283 天"},{"$f":"IF(WEEKDAY(日历日)=WeekStartValue,CONCATENATE(\"第 \",WEEKNUM(日历日),\" 周/第 \",日历日-DATE(YEAR(日历日),1,0),\" 天\"),CONCATENATE(\"第 \",日历日-DATE(YEAR(日历日),1,0),\" 天\"))","v":"第 284 天"},{"$f":"IF(WEEKDAY(日历日)=WeekStartValue,CONCATENATE(\"第 \",WEEKNUM(日历日),\" 周/第 \",日历日-DATE(YEAR(日历日),1,0),\" 天\"),CONCATENATE(\"第 \",日历日-DATE(YEAR(日历日),1,0),\" 天\"))","v":"第 285 天"},{"$f":"IF(WEEKDAY(日历日)=WeekStartValue,CONCATENATE(\"第 \",WEEKNUM(日历日),\" 周/第 \",日历日-DATE(YEAR(日历日),1,0),\" 天\"),CONCATENATE(\"第 \",日历日-DATE(YEAR(日历日),1,0),\" 天\"))","v":"第 286 天"}]
[]
[null,null,{"$f":"星期日期和周+DATE(日历年,10,1)-WEEKDAY(DATE(日历年,10,1),(周开始日期=\"一\")+1)+15","v":"2018-10-14"},"2018-10-15","2018-10-16","2018-10-17","2018-10-18","2018-10-19","2018-10-20"]
[null,null,{"$f":"IF(WEEKDAY(日历日)=WeekStartValue,CONCATENATE(\"第 \",WEEKNUM(日历日),\" 周/第 \",日历日-DATE(YEAR(日历日),1,0),\" 天\"),CONCATENATE(\"第 \",日历日-DATE(YEAR(日历日),1,0),\" 天\"))","v":"第 42 周/第 287 天"},{"$f":"IF(WEEKDAY(日历日)=WeekStartValue,CONCATENATE(\"第 \",WEEKNUM(日历日),\" 周/第 \",日历日-DATE(YEAR(日历日),1,0),\" 天\"),CONCATENATE(\"第 \",日历日-DATE(YEAR(日历日),1,0),\" 天\"))","v":"第 288 天"},{"$f":"IF(WEEKDAY(日历日)=WeekStartValue,CONCATENATE(\"第 \",WEEKNUM(日历日),\" 周/第 \",日历日-DATE(YEAR(日历日),1,0),\" 天\"),CONCATENATE(\"第 \",日历日-DATE(YEAR(日历日),1,0),\" 天\"))","v":"第 289 天"},{"$f":"IF(WEEKDAY(日历日)=WeekStartValue,CONCATENATE(\"第 \",WEEKNUM(日历日),\" 周/第 \",日历日-DATE(YEAR(日历日),1,0),\" 天\"),CONCATENATE(\"第 \",日历日-DATE(YEAR(日历日),1,0),\" 天\"))","v":"第 290 天"},{"$f":"IF(WEEKDAY(日历日)=WeekStartValue,CONCATENATE(\"第 \",WEEKNUM(日历日),\" 周/第 \",日历日-DATE(YEAR(日历日),1,0),\" 天\"),CONCATENATE(\"第 \",日历日-DATE(YEAR(日历日),1,0),\" 天\"))","v":"第 291 天"},{"$f":"IF(WEEKDAY(日历日)=WeekStartValue,CONCATENATE(\"第 \",WEEKNUM(日历日),\" 周/第 \",日历日-DATE(YEAR(日历日),1,0),\" 天\"),CONCATENATE(\"第 \",日历日-DATE(YEAR(日历日),1,0),\" 天\"))","v":"第 292 天"},{"$f":"IF(WEEKDAY(日历日)=WeekStartValue,CONCATENATE(\"第 \",WEEKNUM(日历日),\" 周/第 \",日历日-DATE(YEAR(日历日),1,0),\" 天\"),CONCATENATE(\"第 \",日历日-DATE(YEAR(日历日),1,0),\" 天\"))","v":"第 293 天"}]
[]
[null,null,{"$f":"星期日期和周+DATE(日历年,10,1)-WEEKDAY(DATE(日历年,10,1),(周开始日期=\"一\")+1)+22","v":"2018-10-21"},"2018-10-22","2018-10-23","2018-10-24","2018-10-25","2018-10-26","2018-10-27"]
[null,null,{"$f":"IF(WEEKDAY(日历日)=WeekStartValue,CONCATENATE(\"第 \",WEEKNUM(日历日),\" 周/第 \",日历日-DATE(YEAR(日历日),1,0),\" 天\"),CONCATENATE(\"第 \",日历日-DATE(YEAR(日历日),1,0),\" 天\"))","v":"第 43 周/第 294 天"},{"$f":"IF(WEEKDAY(日历日)=WeekStartValue,CONCATENATE(\"第 \",WEEKNUM(日历日),\" 周/第 \",日历日-DATE(YEAR(日历日),1,0),\" 天\"),CONCATENATE(\"第 \",日历日-DATE(YEAR(日历日),1,0),\" 天\"))","v":"第 295 天"},{"$f":"IF(WEEKDAY(日历日)=WeekStartValue,CONCATENATE(\"第 \",WEEKNUM(日历日),\" 周/第 \",日历日-DATE(YEAR(日历日),1,0),\" 天\"),CONCATENATE(\"第 \",日历日-DATE(YEAR(日历日),1,0),\" 天\"))","v":"第 296 天"},{"$f":"IF(WEEKDAY(日历日)=WeekStartValue,CONCATENATE(\"第 \",WEEKNUM(日历日),\" 周/第 \",日历日-DATE(YEAR(日历日),1,0),\" 天\"),CONCATENATE(\"第 \",日历日-DATE(YEAR(日历日),1,0),\" 天\"))","v":"第 297 天"},{"$f":"IF(WEEKDAY(日历日)=WeekStartValue,CONCATENATE(\"第 \",WEEKNUM(日历日),\" 周/第 \",日历日-DATE(YEAR(日历日),1,0),\" 天\"),CONCATENATE(\"第 \",日历日-DATE(YEAR(日历日),1,0),\" 天\"))","v":"第 298 天"},{"$f":"IF(WEEKDAY(日历日)=WeekStartValue,CONCATENATE(\"第 \",WEEKNUM(日历日),\" 周/第 \",日历日-DATE(YEAR(日历日),1,0),\" 天\"),CONCATENATE(\"第 \",日历日-DATE(YEAR(日历日),1,0),\" 天\"))","v":"第 299 天"},{"$f":"IF(WEEKDAY(日历日)=WeekStartValue,CONCATENATE(\"第 \",WEEKNUM(日历日),\" 周/第 \",日历日-DATE(YEAR(日历日),1,0),\" 天\"),CONCATENATE(\"第 \",日历日-DATE(YEAR(日历日),1,0),\" 天\"))","v":"第 300 天"}]
[]
[null,null,{"$f":"星期日期和周+DATE(日历年,10,1)-WEEKDAY(DATE(日历年,10,1),(周开始日期=\"一\")+1)+29","v":"2018-10-28"},"2018-10-29","2018-10-30","2018-10-31","2018-11-01","2018-11-02","2018-11-03"]
[null,null,{"$f":"IF(WEEKDAY(日历日)=WeekStartValue,CONCATENATE(\"第 \",WEEKNUM(日历日),\" 周/第 \",日历日-DATE(YEAR(日历日),1,0),\" 天\"),CONCATENATE(\"第 \",日历日-DATE(YEAR(日历日),1,0),\" 天\"))","v":"第 44 周/第 301 天"},{"$f":"IF(WEEKDAY(日历日)=WeekStartValue,CONCATENATE(\"第 \",WEEKNUM(日历日),\" 周/第 \",日历日-DATE(YEAR(日历日),1,0),\" 天\"),CONCATENATE(\"第 \",日历日-DATE(YEAR(日历日),1,0),\" 天\"))","v":"第 302 天"},{"$f":"IF(WEEKDAY(日历日)=WeekStartValue,CONCATENATE(\"第 \",WEEKNUM(日历日),\" 周/第 \",日历日-DATE(YEAR(日历日),1,0),\" 天\"),CONCATENATE(\"第 \",日历日-DATE(YEAR(日历日),1,0),\" 天\"))","v":"第 303 天"},{"$f":"IF(WEEKDAY(日历日)=WeekStartValue,CONCATENATE(\"第 \",WEEKNUM(日历日),\" 周/第 \",日历日-DATE(YEAR(日历日),1,0),\" 天\"),CONCATENATE(\"第 \",日历日-DATE(YEAR(日历日),1,0),\" 天\"))","v":"第 304 天"},{"$f":"IF(WEEKDAY(日历日)=WeekStartValue,CONCATENATE(\"第 \",WEEKNUM(日历日),\" 周/第 \",日历日-DATE(YEAR(日历日),1,0),\" 天\"),CONCATENATE(\"第 \",日历日-DATE(YEAR(日历日),1,0),\" 天\"))","v":"第 305 天"},{"$f":"IF(WEEKDAY(日历日)=WeekStartValue,CONCATENATE(\"第 \",WEEKNUM(日历日),\" 周/第 \",日历日-DATE(YEAR(日历日),1,0),\" 天\"),CONCATENATE(\"第 \",日历日-DATE(YEAR(日历日),1,0),\" 天\"))","v":"第 306 天"},{"$f":"IF(WEEKDAY(日历日)=WeekStartValue,CONCATENATE(\"第 \",WEEKNUM(日历日),\" 周/第 \",日历日-DATE(YEAR(日历日),1,0),\" 天\"),CONCATENATE(\"第 \",日历日-DATE(YEAR(日历日),1,0),\" 天\"))","v":"第 307 天"}]
[{"$nulls":4},"备注"]
[]
[null,null,{"$f":"星期日期和周+DATE(日历年,10,1)-WEEKDAY(DATE(日历年,10,1),(周开始日期=\"一\")+1)+36","v":"2018-11-04"},"2018-11-05"]
[null,null,{"$f":"IF(WEEKDAY(日历日)=WeekStartValue,CONCATENATE(\"第 \",WEEKNUM(日历日),\" 周/第 \",日历日-DATE(YEAR(日历日),1,0),\" 天\"),CONCATENATE(\"第 \",日历日-DATE(YEAR(日历日),1,0),\" 天\"))","v":"第 45 周/第 308 天"},{"$f":"IF(WEEKDAY(日历日)=WeekStartValue,CONCATENATE(\"第 \",WEEKNUM(日历日),\" 周/第 \",日历日-DATE(YEAR(日历日),1,0),\" 天\"),CONCATENATE(\"第 \",日历日-DATE(YEAR(日历日),1,0),\" 天\"))","v":"第 309 天"}]

{"sheet":"11月","index":10,"n_rows":20,"n_cols":9,"rows_kept":20,"merged":[[16,2,17,2],[17,4,19,8]]}
[null,"11 月",{"$f":"UPPER(TEXT(周开始日期,\"ddd\"))","v":"日"},{"$f":"UPPER(TEXT(D3,\"aaa\"))","v":"一"},"二","三","四","五","六"]
[null,{"$f":"日历年","v":2018}]
[null,null,{"$f":"星期日期和周+DATE(日历年,11,1)-WEEKDAY(DATE(日历年,11,1),(周开始日期=\"一\")+1)+1","v":"2018-10-28"},"2018-10-29","2018-10-30","2018-10-31","2018-11-01","2018-11-02","2018-11-03"]
[null,null,{"$f":"IF(DAY(日历日)=1,CONCATENATE(\"第 \",WEEKNUM(日历日),\" 周/第 \",日历日-DATE(YEAR(日历日),1,0),\" 天\"),CONCATENATE(\"第 \",日历日-DATE(YEAR(日历日),1,0),\" 天\"))","v":"第 301 天"},{"$f":"IF(DAY(日历日)=1,CONCATENATE(\"第 \",WEEKNUM(日历日),\" 周/第 \",日历日-DATE(YEAR(日历日),1,0),\" 天\"),CONCATENATE(\"第 \",日历日-DATE(YEAR(日历日),1,0),\" 天\"))","v":"第 302 天"},{"$f":"IF(DAY(日历日)=1,CONCATENATE(\"第 \",WEEKNUM(日历日),\" 周/第 \",日历日-DATE(YEAR(日历日),1,0),\" 天\"),CONCATENATE(\"第 \",日历日-DATE(YEAR(日历日),1,0),\" 天\"))","v":"第 303 天"},{"$f":"IF(DAY(日历日)=1,CONCATENATE(\"第 \",WEEKNUM(日历日),\" 周/第 \",日历日-DATE(YEAR(日历日),1,0),\" 天\"),CONCATENATE(\"第 \",日历日-DATE(YEAR(日历日),1,0),\" 天\"))","v":"第 304 天"},{"$f":"IF(DAY(日历日)=1,CONCATENATE(\"第 \",WEEKNUM(日历日),\" 周/第 \",日历日-DATE(YEAR(日历日),1,0),\" 天\"),CONCATENATE(\"第 \",日历日-DATE(YEAR(日历日),1,0),\" 天\"))","v":"第 44 周/第 305 天"},{"$f":"IF(DAY(日历日)=1,CONCATENATE(\"第 \",WEEKNUM(日历日),\" 周/第 \",日历日-DATE(YEAR(日历日),1,0),\" 天\"),CONCATENATE(\"第 \",日历日-DATE(YEAR(日历日),1,0),\" 天\"))","v":"第 306 天"},{"$f":"IF(DAY(日历日)=1,CONCATENATE(\"第 \",WEEKNUM(日历日),\" 周/第 \",日历日-DATE(YEAR(日历日),1,0),\" 天\"),CONCATENATE(\"第 \",日历日-DATE(YEAR(日历日),1,0),\" 天\"))","v":"第 307 天"}]
[]
[null,null,{"$f":"星期日期和周+DATE(日历年,11,1)-WEEKDAY(DATE(日历年,11,1),(周开始日期=\"一\")+1)+8","v":"2018-11-04"},"2018-11-05","2018-11-06","2018-11-07","2018-11-08","2018-11-09","2018-11-10"]
[null,null,{"$f":"IF(WEEKDAY(日历日)=WeekStartValue,CONCATENATE(\"第 \",WEEKNUM(日历日),\" 周/第 \",日历日-DATE(YEAR(日历日),1,0),\" 天\"),CONCATENATE(\"第 \",日历日-DATE(YEAR(日历日),1,0),\" 天\"))","v":"第 45 周/第 308 天"},{"$f":"IF(WEEKDAY(日历日)=WeekStartValue,CONCATENATE(\"第 \",WEEKNUM(日历日),\" 周/第 \",日历日-DATE(YEAR(日历日),1,0),\" 天\"),CONCATENATE(\"第 \",日历日-DATE(YEAR(日历日),1,0),\" 天\"))","v":"第 309 天"},{"$f":"IF(WEEKDAY(日历日)=WeekStartValue,CONCATENATE(\"第 \",WEEKNUM(日历日),\" 周/第 \",日历日-DATE(YEAR(日历日),1,0),\" 天\"),CONCATENATE(\"第 \",日历日-DATE(YEAR(日历日),1,0),\" 天\"))","v":"第 310 天"},{"$f":"IF(WEEKDAY(日历日)=WeekStartValue,CONCATENATE(\"第 \",WEEKNUM(日历日),\" 周/第 \",日历日-DATE(YEAR(日历日),1,0),\" 天\"),CONCATENATE(\"第 \",日历日-DATE(YEAR(日历日),1,0),\" 天\"))","v":"第 311 天"},{"$f":"IF(WEEKDAY(日历日)=WeekStartValue,CONCATENATE(\"第 \",WEEKNUM(日历日),\" 周/第 \",日历日-DATE(YEAR(日历日),1,0),\" 天\"),CONCATENATE(\"第 \",日历日-DATE(YEAR(日历日),1,0),\" 天\"))","v":"第 312 天"},{"$f":"IF(WEEKDAY(日历日)=WeekStartValue,CONCATENATE(\"第 \",WEEKNUM(日历日),\" 周/第 \",日历日-DATE(YEAR(日历日),1,0),\" 天\"),CONCATENATE(\"第 \",日历日-DATE(YEAR(日历日),1,0),\" 天\"))","v":"第 313 天"},{"$f":"IF(WEEKDAY(日历日)=WeekStartValue,CONCATENATE(\"第 \",WEEKNUM(日历日),\" 周/第 \",日历日-DATE(YEAR(日历日),1,0),\" 天\"),CONCATENATE(\"第 \",日历日-DATE(YEAR(日历日),1,0),\" 天\"))","v":"第 314 天"}]
[]
[null,null,{"$f":"星期日期和周+DATE(日历年,11,1)-WEEKDAY(DATE(日历年,11,1),(周开始日期=\"一\")+1)+15","v":"2018-11-11"},"2018-11-12","2018-11-13","2018-11-14","2018-11-15","2018-11-16","2018-11-17"]
[null,null,{"$f":"IF(WEEKDAY(日历日)=WeekStartValue,CONCATENATE(\"第 \",WEEKNUM(日历日),\" 周/第 \",日历日-DATE(YEAR(日历日),1,0),\" 天\"),CONCATENATE(\"第 \",日历日-DATE(YEAR(日历日),1,0),\" 天\"))","v":"第 46 周/第 315 天"},{"$f":"IF(WEEKDAY(日历日)=WeekStartValue,CONCATENATE(\"第 \",WEEKNUM(日历日),\" 周/第 \",日历日-DATE(YEAR(日历日),1,0),\" 天\"),CONCATENATE(\"第 \",日历日-DATE(YEAR(日历日),1,0),\" 天\"))","v":"第 316 天"},{"$f":"IF(WEEKDAY(日历日)=WeekStartValue,CONCATENATE(\"第 \",WEEKNUM(日历日),\" 周/第 \",日历日-DATE(YEAR(日历日),1,0),\" 天\"),CONCATENATE(\"第 \",日历日-DATE(YEAR(日历日),1,0),\" 天\"))","v":"第 317 天"},{"$f":"IF(WEEKDAY(日历日)=WeekStartValue,CONCATENATE(\"第 \",WEEKNUM(日历日),\" 周/第 \",日历日-DATE(YEAR(日历日),1,0),\" 天\"),CONCATENATE(\"第 \",日历日-DATE(YEAR(日历日),1,0),\" 天\"))","v":"第 318 天"},{"$f":"IF(WEEKDAY(日历日)=WeekStartValue,CONCATENATE(\"第 \",WEEKNUM(日历日),\" 周/第 \",日历日-DATE(YEAR(日历日),1,0),\" 天\"),CONCATENATE(\"第 \",日历日-DATE(YEAR(日历日),1,0),\" 天\"))","v":"第 319 天"},{"$f":"IF(WEEKDAY(日历日)=WeekStartValue,CONCATENATE(\"第 \",WEEKNUM(日历日),\" 周/第 \",日历日-DATE(YEAR(日历日),1,0),\" 天\"),CONCATENATE(\"第 \",日历日-DATE(YEAR(日历日),1,0),\" 天\"))","v":"第 320 天"},{"$f":"IF(WEEKDAY(日历日)=WeekStartValue,CONCATENATE(\"第 \",WEEKNUM(日历日),\" 周/第 \",日历日-DATE(YEAR(日历日),1,0),\" 天\"),CONCATENATE(\"第 \",日历日-DATE(YEAR(日历日),1,0),\" 天\"))","v":"第 321 天"}]
[]
[null,null,{"$f":"星期日期和周+DATE(日历年,11,1)-WEEKDAY(DATE(日历年,11,1),(周开始日期=\"一\")+1)+22","v":"2018-11-18"},"2018-11-19","2018-11-20","2018-11-21","2018-11-22","2018-11-23","2018-11-24"]
[null,null,{"$f":"IF(WEEKDAY(日历日)=WeekStartValue,CONCATENATE(\"第 \",WEEKNUM(日历日),\" 周/第 \",日历日-DATE(YEAR(日历日),1,0),\" 天\"),CONCATENATE(\"第 \",日历日-DATE(YEAR(日历日),1,0),\" 天\"))","v":"第 47 周/第 322 天"},{"$f":"IF(WEEKDAY(日历日)=WeekStartValue,CONCATENATE(\"第 \",WEEKNUM(日历日),\" 周/第 \",日历日-DATE(YEAR(日历日),1,0),\" 天\"),CONCATENATE(\"第 \",日历日-DATE(YEAR(日历日),1,0),\" 天\"))","v":"第 323 天"},{"$f":"IF(WEEKDAY(日历日)=WeekStartValue,CONCATENATE(\"第 \",WEEKNUM(日历日),\" 周/第 \",日历日-DATE(YEAR(日历日),1,0),\" 天\"),CONCATENATE(\"第 \",日历日-DATE(YEAR(日历日),1,0),\" 天\"))","v":"第 324 天"},{"$f":"IF(WEEKDAY(日历日)=WeekStartValue,CONCATENATE(\"第 \",WEEKNUM(日历日),\" 周/第 \",日历日-DATE(YEAR(日历日),1,0),\" 天\"),CONCATENATE(\"第 \",日历日-DATE(YEAR(日历日),1,0),\" 天\"))","v":"第 325 天"},{"$f":"IF(WEEKDAY(日历日)=WeekStartValue,CONCATENATE(\"第 \",WEEKNUM(日历日),\" 周/第 \",日历日-DATE(YEAR(日历日),1,0),\" 天\"),CONCATENATE(\"第 \",日历日-DATE(YEAR(日历日),1,0),\" 天\"))","v":"第 326 天"},{"$f":"IF(WEEKDAY(日历日)=WeekStartValue,CONCATENATE(\"第 \",WEEKNUM(日历日),\" 周/第 \",日历日-DATE(YEAR(日历日),1,0),\" 天\"),CONCATENATE(\"第 \",日历日-DATE(YEAR(日历日),1,0),\" 天\"))","v":"第 327 天"},{"$f":"IF(WEEKDAY(日历日)=WeekStartValue,CONCATENATE(\"第 \",WEEKNUM(日历日),\" 周/第 \",日历日-DATE(YEAR(日历日),1,0),\" 天\"),CONCATENATE(\"第 \",日历日-DATE(YEAR(日历日),1,0),\" 天\"))","v":"第 328 天"}]
[]
[null,null,{"$f":"星期日期和周+DATE(日历年,11,1)-WEEKDAY(DATE(日历年,11,1),(周开始日期=\"一\")+1)+29","v":"2018-11-25"},"2018-11-26","2018-11-27","2018-11-28","2018-11-29","2018-11-30","2018-12-01"]
[null,null,{"$f":"IF(WEEKDAY(日历日)=WeekStartValue,CONCATENATE(\"第 \",WEEKNUM(日历日),\" 周/第 \",日历日-DATE(YEAR(日历日),1,0),\" 天\"),CONCATENATE(\"第 \",日历日-DATE(YEAR(日历日),1,0),\" 天\"))","v":"第 48 周/第 329 天"},{"$f":"IF(WEEKDAY(日历日)=WeekStartValue,CONCATENATE(\"第 \",WEEKNUM(日历日),\" 周/第 \",日历日-DATE(YEAR(日历日),1,0),\" 天\"),CONCATENATE(\"第 \",日历日-DATE(YEAR(日历日),1,0),\" 天\"))","v":"第 330 天"},{"$f":"IF(WEEKDAY(日历日)=WeekStartValue,CONCATENATE(\"第 \",WEEKNUM(日历日),\" 周/第 \",日历日-DATE(YEAR(日历日),1,0),\" 天\"),CONCATENATE(\"第 \",日历日-DATE(YEAR(日历日),1,0),\" 天\"))","v":"第 331 天"},{"$f":"IF(WEEKDAY(日历日)=WeekStartValue,CONCATENATE(\"第 \",WEEKNUM(日历日),\" 周/第 \",日历日-DATE(YEAR(日历日),1,0),\" 天\"),CONCATENATE(\"第 \",日历日-DATE(YEAR(日历日),1,0),\" 天\"))","v":"第 332 天"},{"$f":"IF(WEEKDAY(日历日)=WeekStartValue,CONCATENATE(\"第 \",WEEKNUM(日历日),\" 周/第 \",日历日-DATE(YEAR(日历日),1,0),\" 天\"),CONCATENATE(\"第 \",日历日-DATE(YEAR(日历日),1,0),\" 天\"))","v":"第 333 天"},{"$f":"IF(WEEKDAY(日历日)=WeekStartValue,CONCATENATE(\"第 \",WEEKNUM(日历日),\" 周/第 \",日历日-DATE(YEAR(日历日),1,0),\" 天\"),CONCATENATE(\"第 \",日历日-DATE(YEAR(日历日),1,0),\" 天\"))","v":"第 334 天"},{"$f":"IF(WEEKDAY(日历日)=WeekStartValue,CONCATENATE(\"第 \",WEEKNUM(日历日),\" 周/第 \",日历日-DATE(YEAR(日历日),1,0),\" 天\"),CONCATENATE(\"第 \",日历日-DATE(YEAR(日历日),1,0),\" 天\"))","v":"第 335 天"}]
[{"$nulls":4},"备注"]
[]
[null,null,{"$f":"星期日期和周+DATE(日历年,11,1)-WEEKDAY(DATE(日历年,11,1),(周开始日期=\"一\")+1)+36","v":"2018-12-02"},"2018-12-03"]
[null,null,{"$f":"IF(WEEKDAY(日历日)=WeekStartValue,CONCATENATE(\"第 \",WEEKNUM(日历日),\" 周/第 \",日历日-DATE(YEAR(日历日),1,0),\" 天\"),CONCATENATE(\"第 \",日历日-DATE(YEAR(日历日),1,0),\" 天\"))","v":"第 49 周/第 336 天"},{"$f":"IF(WEEKDAY(日历日)=WeekStartValue,CONCATENATE(\"第 \",WEEKNUM(日历日),\" 周/第 \",日历日-DATE(YEAR(日历日),1,0),\" 天\"),CONCATENATE(\"第 \",日历日-DATE(YEAR(日历日),1,0),\" 天\"))","v":"第 337 天"}]

{"sheet":"12月","index":11,"n_rows":20,"n_cols":9,"rows_kept":20,"merged":[[16,2,17,2],[17,4,19,8]]}
[null,"12 月",{"$f":"UPPER(TEXT(周开始日期,\"ddd\"))","v":"日"},{"$f":"UPPER(TEXT(D3,\"aaa\"))","v":"一"},"二","三","四","五","六"]
[null,{"$f":"日历年","v":2018}]
[null,null,{"$f":"星期日期和周+DATE(日历年,12,1)-WEEKDAY(DATE(日历年,12,1),(周开始日期=\"一\")+1)+1","v":"2018-11-25"},"2018-11-26","2018-11-27","2018-11-28","2018-11-29","2018-11-30","2018-12-01"]
[null,null,{"$f":"IF(DAY(日历日)=1,CONCATENATE(\"第 \",WEEKNUM(日历日),\" 周/第 \",日历日-DATE(YEAR(日历日),1,0),\" 天\"),CONCATENATE(\"第 \",日历日-DATE(YEAR(日历日),1,0),\" 天\"))","v":"第 329 天"},{"$f":"IF(DAY(日历日)=1,CONCATENATE(\"第 \",WEEKNUM(日历日),\" 周/第 \",日历日-DATE(YEAR(日历日),1,0),\" 天\"),CONCATENATE(\"第 \",日历日-DATE(YEAR(日历日),1,0),\" 天\"))","v":"第 330 天"},{"$f":"IF(DAY(日历日)=1,CONCATENATE(\"第 \",WEEKNUM(日历日),\" 周/第 \",日历日-DATE(YEAR(日历日),1,0),\" 天\"),CONCATENATE(\"第 \",日历日-DATE(YEAR(日历日),1,0),\" 天\"))","v":"第 331 天"},{"$f":"IF(DAY(日历日)=1,CONCATENATE(\"第 \",WEEKNUM(日历日),\" 周/第 \",日历日-DATE(YEAR(日历日),1,0),\" 天\"),CONCATENATE(\"第 \",日历日-DATE(YEAR(日历日),1,0),\" 天\"))","v":"第 332 天"},{"$f":"IF(DAY(日历日)=1,CONCATENATE(\"第 \",WEEKNUM(日历日),\" 周/第 \",日历日-DATE(YEAR(日历日),1,0),\" 天\"),CONCATENATE(\"第 \",日历日-DATE(YEAR(日历日),1,0),\" 天\"))","v":"第 333 天"},{"$f":"IF(DAY(日历日)=1,CONCATENATE(\"第 \",WEEKNUM(日历日),\" 周/第 \",日历日-DATE(YEAR(日历日),1,0),\" 天\"),CONCATENATE(\"第 \",日历日-DATE(YEAR(日历日),1,0),\" 天\"))","v":"第 334 天"},{"$f":"IF(DAY(日历日)=1,CONCATENATE(\"第 \",WEEKNUM(日历日),\" 周/第 \",日历日-DATE(YEAR(日历日),1,0),\" 天\"),CONCATENATE(\"第 \",日历日-DATE(YEAR(日历日),1,0),\" 天\"))","v":"第 48 周/第 335 天"}]
[]
[null,null,{"$f":"星期日期和周+DATE(日历年,12,1)-WEEKDAY(DATE(日历年,12,1),(周开始日期=\"一\")+1)+8","v":"2018-12-02"},"2018-12-03","2018-12-04","2018-12-05","2018-12-06","2018-12-07","2018-12-08"]
[null,null,{"$f":"IF(WEEKDAY(日历日)=WeekStartValue,CONCATENATE(\"第 \",WEEKNUM(日历日),\" 周/第 \",日历日-DATE(YEAR(日历日),1,0),\" 天\"),CONCATENATE(\"第 \",日历日-DATE(YEAR(日历日),1,0),\" 天\"))","v":"第 49 周/第 336 天"},{"$f":"IF(WEEKDAY(日历日)=WeekStartValue,CONCATENATE(\"第 \",WEEKNUM(日历日),\" 周/第 \",日历日-DATE(YEAR(日历日),1,0),\" 天\"),CONCATENATE(\"第 \",日历日-DATE(YEAR(日历日),1,0),\" 天\"))","v":"第 337 天"},{"$f":"IF(WEEKDAY(日历日)=WeekStartValue,CONCATENATE(\"第 \",WEEKNUM(日历日),\" 周/第 \",日历日-DATE(YEAR(日历日),1,0),\" 天\"),CONCATENATE(\"第 \",日历日-DATE(YEAR(日历日),1,0),\" 天\"))","v":"第 338 天"},{"$f":"IF(WEEKDAY(日历日)=WeekStartValue,CONCATENATE(\"第 \",WEEKNUM(日历日),\" 周/第 \",日历日-DATE(YEAR(日历日),1,0),\" 天\"),CONCATENATE(\"第 \",日历日-DATE(YEAR(日历日),1,0),\" 天\"))","v":"第 339 天"},{"$f":"IF(WEEKDAY(日历日)=WeekStartValue,CONCATENATE(\"第 \",WEEKNUM(日历日),\" 周/第 \",日历日-DATE(YEAR(日历日),1,0),\" 天\"),CONCATENATE(\"第 \",日历日-DATE(YEAR(日历日),1,0),\" 天\"))","v":"第 340 天"},{"$f":"IF(WEEKDAY(日历日)=WeekStartValue,CONCATENATE(\"第 \",WEEKNUM(日历日),\" 周/第 \",日历日-DATE(YEAR(日历日),1,0),\" 天\"),CONCATENATE(\"第 \",日历日-DATE(YEAR(日历日),1,0),\" 天\"))","v":"第 341 天"},{"$f":"IF(WEEKDAY(日历日)=WeekStartValue,CONCATENATE(\"第 \",WEEKNUM(日历日),\" 周/第 \",日历日-DATE(YEAR(日历日),1,0),\" 天\"),CONCATENATE(\"第 \",日历日-DATE(YEAR(日历日),1,0),\" 天\"))","v":"第 342 天"}]
[]
[null,null,{"$f":"星期日期和周+DATE(日历年,12,1)-WEEKDAY(DATE(日历年,12,1),(周开始日期=\"一\")+1)+15","v":"2018-12-09"},"2018-12-10","2018-12-11","2018-12-12","2018-12-13","2018-12-14","2018-12-15"]
[null,null,{"$f":"IF(WEEKDAY(日历日)=WeekStartValue,CONCATENATE(\"第 \",WEEKNUM(日历日),\" 周/第 \",日历日-DATE(YEAR(日历日),1,0),\" 天\"),CONCATENATE(\"第 \",日历日-DATE(YEAR(日历日),1,0),\" 天\"))","v":"第 50 周/第 343 天"},{"$f":"IF(WEEKDAY(日历日)=WeekStartValue,CONCATENATE(\"第 \",WEEKNUM(日历日),\" 周/第 \",日历日-DATE(YEAR(日历日),1,0),\" 天\"),CONCATENATE(\"第 \",日历日-DATE(YEAR(日历日),1,0),\" 天\"))","v":"第 344 天"},{"$f":"IF(WEEKDAY(日历日)=WeekStartValue,CONCATENATE(\"第 \",WEEKNUM(日历日),\" 周/第 \",日历日-DATE(YEAR(日历日),1,0),\" 天\"),CONCATENATE(\"第 \",日历日-DATE(YEAR(日历日),1,0),\" 天\"))","v":"第 345 天"},{"$f":"IF(WEEKDAY(日历日)=WeekStartValue,CONCATENATE(\"第 \",WEEKNUM(日历日),\" 周/第 \",日历日-DATE(YEAR(日历日),1,0),\" 天\"),CONCATENATE(\"第 \",日历日-DATE(YEAR(日历日),1,0),\" 天\"))","v":"第 346 天"},{"$f":"IF(WEEKDAY(日历日)=WeekStartValue,CONCATENATE(\"第 \",WEEKNUM(日历日),\" 周/第 \",日历日-DATE(YEAR(日历日),1,0),\" 天\"),CONCATENATE(\"第 \",日历日-DATE(YEAR(日历日),1,0),\" 天\"))","v":"第 347 天"},{"$f":"IF(WEEKDAY(日历日)=WeekStartValue,CONCATENATE(\"第 \",WEEKNUM(日历日),\" 周/第 \",日历日-DATE(YEAR(日历日),1,0),\" 天\"),CONCATENATE(\"第 \",日历日-DATE(YEAR(日历日),1,0),\" 天\"))","v":"第 348 天"},{"$f":"IF(WEEKDAY(日历日)=WeekStartValue,CONCATENATE(\"第 \",WEEKNUM(日历日),\" 周/第 \",日历日-DATE(YEAR(日历日),1,0),\" 天\"),CONCATENATE(\"第 \",日历日-DATE(YEAR(日历日),1,0),\" 天\"))","v":"第 349 天"}]
[]
[null,null,{"$f":"星期日期和周+DATE(日历年,12,1)-WEEKDAY(DATE(日历年,12,1),(周开始日期=\"一\")+1)+22","v":"2018-12-16"},"2018-12-17","2018-12-18","2018-12-19","2018-12-20","2018-12-21","2018-12-22"]
[null,null,{"$f":"IF(WEEKDAY(日历日)=WeekStartValue,CONCATENATE(\"第 \",WEEKNUM(日历日),\" 周/第 \",日历日-DATE(YEAR(日历日),1,0),\" 天\"),CONCATENATE(\"第 \",日历日-DATE(YEAR(日历日),1,0),\" 天\"))","v":"第 51 周/第 350 天"},{"$f":"IF(WEEKDAY(日历日)=WeekStartValue,CONCATENATE(\"第 \",WEEKNUM(日历日),\" 周/第 \",日历日-DATE(YEAR(日历日),1,0),\" 天\"),CONCATENATE(\"第 \",日历日-DATE(YEAR(日历日),1,0),\" 天\"))","v":"第 351 天"},{"$f":"IF(WEEKDAY(日历日)=WeekStartValue,CONCATENATE(\"第 \",WEEKNUM(日历日),\" 周/第 \",日历日-DATE(YEAR(日历日),1,0),\" 天\"),CONCATENATE(\"第 \",日历日-DATE(YEAR(日历日),1,0),\" 天\"))","v":"第 352 天"},{"$f":"IF(WEEKDAY(日历日)=WeekStartValue,CONCATENATE(\"第 \",WEEKNUM(日历日),\" 周/第 \",日历日-DATE(YEAR(日历日),1,0),\" 天\"),CONCATENATE(\"第 \",日历日-DATE(YEAR(日历日),1,0),\" 天\"))","v":"第 353 天"},{"$f":"IF(WEEKDAY(日历日)=WeekStartValue,CONCATENATE(\"第 \",WEEKNUM(日历日),\" 周/第 \",日历日-DATE(YEAR(日历日),1,0),\" 天\"),CONCATENATE(\"第 \",日历日-DATE(YEAR(日历日),1,0),\" 天\"))","v":"第 354 天"},{"$f":"IF(WEEKDAY(日历日)=WeekStartValue,CONCATENATE(\"第 \",WEEKNUM(日历日),\" 周/第 \",日历日-DATE(YEAR(日历日),1,0),\" 天\"),CONCATENATE(\"第 \",日历日-DATE(YEAR(日历日),1,0),\" 天\"))","v":"第 355 天"},{"$f":"IF(WEEKDAY(日历日)=WeekStartValue,CONCATENATE(\"第 \",WEEKNUM(日历日),\" 周/第 \",日历日-DATE(YEAR(日历日),1,0),\" 天\"),CONCATENATE(\"第 \",日历日-DATE(YEAR(日历日),1,0),\" 天\"))","v":"第 356 天"}]
[]
[null,null,{"$f":"星期日期和周+DATE(日历年,12,1)-WEEKDAY(DATE(日历年,12,1),(周开始日期=\"一\")+1)+29","v":"2018-12-23"},"2018-12-24","2018-12-25","2018-12-26","2018-12-27","2018-12-28","2018-12-29"]
[null,null,{"$f":"IF(WEEKDAY(日历日)=WeekStartValue,CONCATENATE(\"第 \",WEEKNUM(日历日),\" 周/第 \",日历日-DATE(YEAR(日历日),1,0),\" 天\"),CONCATENATE(\"第 \",日历日-DATE(YEAR(日历日),1,0),\" 天\"))","v":"第 52 周/第 357 天"},{"$f":"IF(WEEKDAY(日历日)=WeekStartValue,CONCATENATE(\"第 \",WEEKNUM(日历日),\" 周/第 \",日历日-DATE(YEAR(日历日),1,0),\" 天\"),CONCATENATE(\"第 \",日历日-DATE(YEAR(日历日),1,0),\" 天\"))","v":"第 358 天"},{"$f":"IF(WEEKDAY(日历日)=WeekStartValue,CONCATENATE(\"第 \",WEEKNUM(日历日),\" 周/第 \",日历日-DATE(YEAR(日历日),1,0),\" 天\"),CONCATENATE(\"第 \",日历日-DATE(YEAR(日历日),1,0),\" 天\"))","v":"第 359 天"},{"$f":"IF(WEEKDAY(日历日)=WeekStartValue,CONCATENATE(\"第 \",WEEKNUM(日历日),\" 周/第 \",日历日-DATE(YEAR(日历日),1,0),\" 天\"),CONCATENATE(\"第 \",日历日-DATE(YEAR(日历日),1,0),\" 天\"))","v":"第 360 天"},{"$f":"IF(WEEKDAY(日历日)=WeekStartValue,CONCATENATE(\"第 \",WEEKNUM(日历日),\" 周/第 \",日历日-DATE(YEAR(日历日),1,0),\" 天\"),CONCATENATE(\"第 \",日历日-DATE(YEAR(日历日),1,0),\" 天\"))","v":"第 361 天"},{"$f":"IF(WEEKDAY(日历日)=WeekStartValue,CONCATENATE(\"第 \",WEEKNUM(日历日),\" 周/第 \",日历日-DATE(YEAR(日历日),1,0),\" 天\"),CONCATENATE(\"第 \",日历日-DATE(YEAR(日历日),1,0),\" 天\"))","v":"第 362 天"},{"$f":"IF(WEEKDAY(日历日)=WeekStartValue,CONCATENATE(\"第 \",WEEKNUM(日历日),\" 周/第 \",日历日-DATE(YEAR(日历日),1,0),\" 天\"),CONCATENATE(\"第 \",日历日-DATE(YEAR(日历日),1,0),\" 天\"))","v":"第 363 天"}]
[{"$nulls":4},"备注"]
[]
[null,null,{"$f":"星期日期和周+DATE(日历年,12,1)-WEEKDAY(DATE(日历年,12,1),(周开始日期=\"一\")+1)+36","v":"2018-12-30"},"2018-12-31"]
[null,null,{"$f":"IF(WEEKDAY(日历日)=WeekStartValue,CONCATENATE(\"第 \",WEEKNUM(日历日),\" 周/第 \",日历日-DATE(YEAR(日历日),1,0),\" 天\"),CONCATENATE(\"第 \",日历日-DATE(YEAR(日历日),1,0),\" 天\"))","v":"第 53 周/第 364 天"},{"$f":"IF(WEEKDAY(日历日)=WeekStartValue,CONCATENATE(\"第 \",WEEKNUM(日历日),\" 周/第 \",日历日-DATE(YEAR(日历日),1,0),\" 天\"),CONCATENATE(\"第 \",日历日-DATE(YEAR(日历日),1,0),\" 天\"))","v":"第 365 天"}]